Workbook

Sheet PERSONAL
C1: ANEXO PERSONAL MÍNIMO
D3: ACTIVIDADES COMPLEMENTARIAS | K3: ='Tarifas IDRD'!J4 -> 2023 | Y3: ='Tarifas IDRD'!K4 -> 2024
C4: CÓDIGO | D4: DESCRIPCIÓN FUNCIONAL | E4: CARGO | J4: CANTIDAD | K4: ENE | L4: FEB | M4: MAR | N4: ABR | O4: MAY | P4: JUN | Q4: JUL | R4: AGO | S4: SEP | T4: OCT | U4: NOV | V4: DIC | X4: TOTAL DEDICACIÓN PROM / MES | Y4: ENE | Z4: FEB | AA4: MAR | AB4: ABR | AC4: MAY | AD4: JUN | AE4: JUL | AF4: AGO | AG4: SEP | AH4: OCT | AI4: NOV | AJ4: DIC | AK4: TOTAL DEDICACIÓN PROM / MES | AL4: TOTAL PROY / MES | AM4: VALOR HOMBRE/MES SEGÚN CATEGORÍA | AO4: DÍAS EFECTIVOS | AP4: COSTO TOTAL HOMBRE EN PROYECTO ($)
F5: PROFESIONAL/TÉCNICO/TÉCNOLOGO | G5: POSGRADO | H5: PROFESIONAL/TÉCNICO/TÉCNOLOGO | I5: POSGRADO | K5: 0 | L5: 0 | M5: 0 | N5: 0 | R5: 30 | S5: 30 | X5: =(SUM(K5:V5)/30)&" Meses" -> 2 Meses | AK5: =(SUM(Y5:AJ5)/30)&" Meses" -> 0 Meses | AL5: =(SUM(Y5:AJ5)/30+SUM(K5:V5)/30)&" Meses" -> 2 Meses | AM5: ='Tarifas IDRD'!J4 -> 2023 | AN5: ='Tarifas IDRD'!K4 -> 2024 | AO5: =SUM(K5:V5+Y5:AJ5) -> 60
K6: =IF(K5=0,0,IF(K5=15,0.5,IF(K5=30,1,IF(K5=45,1.5,0)))) -> 0 | L6: 0 | M6: 0 | N6: 0 | O6: 0 | P6: 0 | Q6: 0 | R6: 1 | S6: 1 | T6: 0 | U6: 0 | V6: 0 | X6: =(SUM(K5:V5)/30) -> 2 | Y6: =IF(Y5=0,0,IF(Y5=15,0.5,IF(Y5=30,1,IF(Y5=45,1.5,0)))) -> 0 | Z6: 0 | AA6: 0 | AB6: 0 | AC6: 0 | AD6: 0 | AE6: 0 | AF6: 0 | AG6: 0 | AH6: 0 | AI6: 0 | AJ6: 0 | AK6: =SUM(Y5:AJ5)/30 -> 0 | AL6: =SUM(Y5:AJ5)/30+SUM(K5:V5)/30 -> 2
C7: =IFERROR(VLOOKUP($D7,TARIFA_IDRD,5,0),"") -> 106852 | D7: PROFESIONAL CATEGORÍA 3 (E.G.6;E.E.4) | E7: ARQUITECTO DISEÑADOR SENIOR | F7: Título Profesional en: - Arquitectura | G7: Título de Posgrado en: - ARQUITECTURA O - ARQUITECTURA Y URBANISMO - DISEÑO URBANO - PROYECTOS ARQUITECTÓNICOS | H7: Con experiencia general de seis (6) años | I7: Experiencia específica en mínimo cuatro (4) años y tres (3) proyectos como Arquitecto Diseñador en proyectos de diseño de equipamientos públicos de categoría de alta complejidad. | J7: 1 | R7: 0.5 | S7: 0.5 | X7: =SUM(K7:V7) -> 1 | AK7: =SUM(Y7:AJ7) -> 0 | AL7: =X7+AK7 -> 1 | AM7: =IFERROR(VLOOKUP($D7,TARIFA_IDRD,9,0),0) -> 8614613.67 | AN7: =IFERROR(VLOOKUP($D7,TARIFA_IDRD,10,0),0) -> 9291722.67 | AO7: =(((PERSONAL!$X7*30)*$X$6)+(PERSONAL!$AK7*30)*$AK$6)*PERSONAL!$J7 -> 60 | AP7: =ROUND((X7*AM7+AK7*AN7)*J7,0) -> 8614614
C8: 100144 | D8: PROFESIONAL CATEGORÍA 4 (E.G.4;E.E.1) | E8: ARQUITECTO URBANISTA | F8: Título Profesional en: - Arquitectura | G8: Título de Postgrado en: - URBANISMO Y PLANEACION TERRITORIAL - URBANISMO - ARQUITECTURA Y URBANISMO - URBANISMO Y DESARROLLO TERRITORIAL - DESARROLLO URBANO SOSTENIBLE - URBANISMO Y PLANEACION TERRITORIAL - PLANEACION TERRITORIAL - DISEÑO URBANO | H8: Con experiencia general de seis (6) años | I8: Experiencia específica en mínimo cuatro (4) años y tres (3) proyectos como Arquitecto Urbanista en proyectos de diseño de equipamientos públicos de categoría de alta complejidad. | J8: 1 | R8: 0.2 | S8: 0.2 | X8: 0.4 | AK8: 0 | AL8: 0.4 | AM8: 7246083.122 | AN8: 7815625.122 | AO8: =(((PERSONAL!$X8*30)*$X$6)+(PERSONAL!$AK8*30)*$AK$6)*PERSONAL!$J8 -> 24 | AP8: 2898433
C9: 100145 | D9: PROFESIONAL CATEGORÍA 5 (E.G.3;E.E.1) | E9: ESPECIALISTA GEOTECNISTA | F9: Título Profesional en: - Ingenieria Civil | G9: Ingeniero Civil con título de Postgrado en: - INGENIERIA - GEOTECNIA - GEOTECNIA - GEOTECNIA VIAL - GEOTECNIA Y ESTABILIDAD DE TALUDES - INGENIERIA DE FUNDACIONES | H9: Con experiencia general de ocho (8) años | I9: Experiencia específica en mínimo cinco (5) años y tres (3) proyectos como Especialista en Geotecnia o profesional encargado de cimentaciones en proyectos de diseño de equipamientos públicos de categoría de alta complejidad. | J9: 1 | R9: 0.05 | S9: 0.05 | X9: 0.1 | AK9: 0 | AL9: 0.1 | AM9: 5720319.598 | AN9: 6169936.598 | AO9: =(((PERSONAL!$X9*30)*$X$6)+(PERSONAL!$AK9*30)*$AK$6)*PERSONAL!$J9 -> 6 | AP9: 572032
C10: 100145 | D10: PROFESIONAL CATEGORÍA 5 (E.G.3;E.E.1) | E10: DISEÑADOR HIDROSANITARIO | F10: Título Profesional en: - Ingeniería Sanitario o - Ingeniería Ambiental y Sanitario o - Ingeniero Civil | G10: Título de Postgrado en: - OBRAS HIDRAULICAS - INGENIERÍA HIDRÁULICA Y AMBIENTAL - INGENIERIA - RECURSOS HIDRAULICOS - RECURSOS HIDRAULICOS - RECURSOS HÍDRICOS | H10: Con experiencia general de ocho (8) años | I10: Con experiencia general de ocho (8) años y experiencia específica de cinco (5) proyectos como especialista hidráulico en el diseño de redes de suministro de agua potable, redes de aguas residuales y redes de aguas lluvia internas y externas; y al menos tres (3) proyectos de construcción de urbanismo que incluyan construcción de Sistemas Urbanos de Drenaje Sostenible. | J10: 1 | R10: 0.2 | S10: 0.2 | X10: 0.4 | AK10: 0 | AL10: 0.4 | AM10: 5720319.598 | AN10: 6169936.598 | AO10: =(((PERSONAL!$X10*30)*$X$6)+(PERSONAL!$AK10*30)*$AK$6)*PERSONAL!$J10 -> 24 | AP10: 2288128
C11: 100145 | D11: PROFESIONAL CATEGORÍA 5 (E.G.3;E.E.1) | E11: DISEÑADOR ELÉCTRICO | F11: Título Profesional en: - Ingeneiro Electrico o - Ingeniero Electricista | G11: N/A | H11: Con experiencia general de seis (6) años | I11: Experiencia específica en mínimo cuatro (4) años y cuatro (4) proyectos como profesional Eléctico relacionado con áreas como alumbrado público, instalaciones eléctricas internas, redes de media tensión y baja tensión y subestaciones. | J11: 1 | R11: 0.2 | S11: 0.2 | X11: 0.4 | AK11: 0 | AL11: 0.4 | AM11: 5720319.598 | AN11: 6169936.598 | AO11: =(((PERSONAL!$X11*30)*$X$6)+(PERSONAL!$AK11*30)*$AK$6)*PERSONAL!$J11 -> 24 | AP11: 2288128
C12: 100145 | D12: PROFESIONAL CATEGORÍA 5 (E.G.3;E.E.1) | E12: PROFESIONAL FORESTAL | F12: Título Profesional de: - Ingeniería Forestal | G12: N/A | H12: Con experiencia profesional seis (6) años | I12: Experiencia específica mínima de cuatro (4) años y dos (2) proyectos como profesional encargado en manejo de arbolado en proyectos de construcción o adecuación o mantenimiento de obras de infraestructura preferiblemente de espacio público, permisos de aprovechamiento forestal, elaboración de informes, reportes diarios, manejo de plataformas de videoconferencia, disponer equipo de cómputo, Manejo de ArcGis y/o Autocad y acompañamiento a los comités de obra. Trabajo de campo y oficina | J12: 1 | R12: 0.1 | X12: 0.1 | AK12: 0 | AL12: 0.1 | AM12: 5720319.598 | AN12: 6169936.598 | AO12: =(((PERSONAL!$X12*30)*$X$6)+(PERSONAL!$AK12*30)*$AK$6)*PERSONAL!$J12 -> 6 | AP12: 572032
C13: 100145 | D13: PROFESIONAL CATEGORÍA 5 (E.G.3;E.E.1) | E13: ESPECIALISTA MOVILIDAD Y TRÁNSITO | F13: Título Profesional en: - Ingeniería de Transporte y vías o - Ingeniería Civil | G13: Título de postgrado en: - INGENIERIA - TRANSITO, DISEÑO Y SEGURIDAD VIAL - INGENIERIA - TRANSPORTES - VIAS Y TRANSPORTE - TRÁNSITO Y TRANSPORTE - TRANSITO - MOVILIDAD Y TRANSPORTE | H13: Con experiencia general de cuatro (4) años | I13: Experiencia específica en mínimo un (1) año y un (1) proyecto como Profesional Especialista para la elaboración y seguimiento de protocolos de manejo de tránsito vehicular y peatonal en proyectos de obras civiles. | J13: 1 | R13: 0.15 | S13: 0.15 | X13: 0.3 | AK13: 0 | AL13: 0.3 | AM13: 5720319.598 | AN13: 6169936.598 | AO13: =(((PERSONAL!$X13*30)*$X$6)+(PERSONAL!$AK13*30)*$AK$6)*PERSONAL!$J13 -> 18 | AP13: 1716096
C14: 100144 | D14: PROFESIONAL CATEGORÍA 4 (E.G.4;E.E.1) | E14: PROFESIONAL EN PRESUPUESTO Y PROGRAMANCIÓN | F14: Título Profesional en: - Ingenieria Civil o - Arquitectura | G14: Título de Postgrado que se encuentre registrado dentro de los programas del Sistema Nacional de Información de la Educación Superior (SNIES) | H14: Con experiencia profesional de ocho (8) años | I14: Experiencia específica de mínimo cinco (5) años y tres (3) proyectos como Profesional responsable en la elaboración y seguimiento de presupuesto y programación de obras civiles en proyectos de equipamientos públicos de categoría de alta complejidad. | J14: 1 | R14: 0.2 | S14: 0.2 | X14: 0.4 | AK14: 0 | AL14: 0.4 | AM14: 7246083.122 | AN14: 7815625.122 | AO14: =(((PERSONAL!$X14*30)*$X$6)+(PERSONAL!$AK14*30)*$AK$6)*PERSONAL!$J14 -> 24 | AP14: 2898433
C15: 100145 | D15: PROFESIONAL CATEGORÍA 5 (E.G.3;E.E.1) | E15: PROFESIONAL SOCIAL | F15: Título profesional en ciencias sociales o afines: - Sociología o - Trabajo Social o - Psicología - Comunicación social o - Licenciado en pedagogía | G15: N/A | H15: Con experiencia profesional seis (6) años | I15: Experiencia específica de mínimo cuatro (4) años y dos (2) proyectos como profesional responsable en en diseño e implementación de planes de gestión social para proyectos de infraestructura | J15: 1 | R15: 0.4 | S15: 0.4 | X15: 0.8 | AK15: 0 | AL15: 0.8 | AM15: 5720319.598 | AN15: 6169936.598 | AO15: =(((PERSONAL!$X15*30)*$X$6)+(PERSONAL!$AK15*30)*$AK$6)*PERSONAL!$J15 -> 48 | AP15: 4576256
C16: 100145 | D16: PROFESIONAL CATEGORÍA 5 (E.G.3;E.E.1) | E16: PROFESIONAL CALIDAD | F16: Título Profesional en: - Ingenieria Civil o - Arquitectura | G16: Título de Postgrado en: - GESTIÓN INTEGRAL DE LA CALIDAD - GERENCIA DE LA CALIDAD - GERENCIA INTEGRAL DE LA CALIDAD - INGENIERÍA DE LA CALIDAD - GESTION Y CONTROL DE CALIDAD - SISTEMAS DE ADMINISTRACION DE LA CALIDAD ISO 9000 - GERENCIA INTEGRAL EN SISTEMAS DE GESTIÓN DE CALIDAD - GESTION DE LA CALIDAD - SISTEMAS INTEGRADOS DE CALIDAD - GERENCIA DE PROCESOS Y CALIDAD - DIRECCIÓN Y GESTIÓN DE LA CALIDAD - GERENCIA INTEGRAL DE LA CALIDAD | H16: Con experiencia profesional de seis (6) años | I16: Experiencia específica en mínimo cuatro (4) años y dos (2) proyectos como profesional o especialista de calidad, en proyectos de diseño y construcción de infraestructura vertical y/o urbana, parques, o escenarios deportivos. | J16: 1 | R16: 0.1 | S16: 0.1 | X16: 0.2 | AK16: 0 | AL16: 0.2 | AM16: 5720319.598 | AN16: 6169936.598 | AO16: =(((PERSONAL!$X16*30)*$X$6)+(PERSONAL!$AK16*30)*$AK$6)*PERSONAL!$J16 -> 12 | AP16: 1144064
C17: 100145 | D17: PROFESIONAL CATEGORÍA 5 (E.G.3;E.E.1) | E17: PROFESIONAL SG-SST | F17: Título Profesional en: - Profesional Seguridad Y Salud En El Trabajo - Profesional En Gestión De La Seguridad Y Salud En El Trabajo - Administración En Salud Ocupacional - Administración De La Seguridad Y Salud Ocupacional - Ingeniería En Seguridad Y Salud En El Trabajo - Profesional En Salud Ocupacional - Ingeniero Ambiental - Ingeniero Civil | G17: Título de Postgrado en: - SISTEMAS INTEGRADOS DE SEGURIDAD Y SALUD OCUPACIONAL AMBIENTAL Y CALIDAD - SALUD OCUPACIONAL - GERENCIA DE LA SALUD OCUPACIONAL - HSEQ - SISTEMAS INTEGRADOS DE SEGURIDAD Y SALUD OCUPACIONAL AMBIENTAL Y CALIDAD - GERENCIA INTEGRAL DEL RIESGO, SEGURIDAD Y SALUD EN EL TRABAJO - GERENCIA EN SEGURIDAD Y SALUD EN EL TRABAJO - SEGURIDAD Y SALUD EN EL TRABAJO - GESTIÓN DE LA SEGURIDAD Y SALUD EN EL TRABAJO - GERENCIA DE SEGURIDAD Y SALUD EN EL TRABAJO - GESTIÓN DE LA SEGURIDAD Y SALUD EN EL TRABAJO - GERENCIA EN RIESGOS LABORALES, SEGURIDAD Y SALUD EN EL TRABAJO Con licencia vigente en salud ocupacional /SST, curso de 50 horas y 20 horas (cuando aplique), certificado de Coordinador de trabajo en alturas. | H17: Con experiencia profesional de cuatro (4) años y dos (2) años contados a apartir de la expedicion de la licencia SST | I17: Con experiencia profesional de mínimo un (1) año y dos (2) proyectos como profesional responsable de la elaboración, implementación y seguimiento de Sistemas de Gestión de Seguridad y Salud en el Trabajo. | J17: 1 | R17: 0.1 | S17: 0.1 | X17: 0.2 | AK17: 0 | AL17: 0.2 | AM17: 5720319.598 | AN17: 6169936.598 | AO17: =(((PERSONAL!$X17*30)*$X$6)+(PERSONAL!$AK17*30)*$AK$6)*PERSONAL!$J17 -> 12 | AP17: 1144064
C18: 598 | D18: Topógrafo 1 | E18: TOPÓGRAFO | F18: Ingeniero Topográfico | G18: N/A | H18: Con experiencia profesional de cuatro (4) años | I18: Experiencia específica en mínimo dos (2) años como profesional responsable de la elaboración de levantamientos topográficos. | J18: 1 | R18: 0.5 | S18: 0.5 | X18: 1 | AK18: 0 | AL18: 1 | AM18: 3165792.965 | AN18: 3414623.965 | AO18: =(((PERSONAL!$X18*30)*$X$6)+(PERSONAL!$AK18*30)*$AK$6)*PERSONAL!$J18 -> 60 | AP18: 3165793
C19: 642 | D19: Cadenero 1 | E19: CADENERO 1 | F19: Cadenero | G19: N/A | H19: Con experiencia general de un (1) año | I19: Un (1) año de experiencia especifica en la elaboración de levantamientos topográficos. | J19: 1 | R19: 0.5 | S19: 0.5 | X19: 1 | AK19: 0 | AL19: 1 | AM19: 1933369.38 | AN19: 2085332.214 | AO19: =(((PERSONAL!$X19*30)*$X$6)+(PERSONAL!$AK19*30)*$AK$6)*PERSONAL!$J19 -> 60 | AP19: 1933369
AJ20: SUBTOTAL PERSONAL | AP20: =SUBTOTAL(109,PERSONAL!$AP$7:$AP$19) -> 0
AJ21: FACTOR MULTIPLICADOR | AP21: =FACTOR!#REF! -> 
AJ22: TOTAL PERSONAL | AP22: =ROUND(AP20*AP21,0) -> 
C23: NOTA 1: | D23: El contratista (adjudicatario) tendrá que ejecutar el contrato sin que se considere viable el reconocimiento de mayores costos y/o gastos en los que éste tuviere que incurrir para la ejecución del contrato. Lo anterior, considerando que la ejecución de los diseños se costeó para la entrega de un producto definido, pese a la estimación de dedicación por cada profesional que en ella interviene y, por lo tanto, está pactada contra producto.
C24: NOTA 2: | D24: La dedicación de los profesionales incluye el trámite de permisos y solicitudes ante las autoridades competentes (SDA, EEAB, ICANH, IDIGER, etc.) y trámites de Licencia de Construcción.
C25: NOTA 3: | D25: Los consultores de todos los proyectos técnicos deben atender todas las consultas que resulten de la ejecución de las obras sin que esto genere mayores costos al proyecto durante la etapa de construcción. Salvo en aquellos casos que se requiere modificación o actualización de los mismos cuyas causas no sean imputables a los responsables de los mismos.
D27: INTERVENTORIA | K27: ='Tarifas IDRD'!J4 -> 2023 | Q27: 2023 | S27: 2024 | Y27: ='Tarifas IDRD'!K4 -> 2024
C28: CÓDIGO IDRD | D28: DESCRIPCIÓN FUNCIONAL | E28: CARGO | J28: CANTIDAD | K28: ENE | L28: FEB | M28: MAR | N28: ABR | O28: MAY | P28: JUN | Q28: NOV | R28: DIC | S28: ENE | T28: FEB | U28: MAR | V28: ABR | W28: MAY | X28: TOTAL DEDICACIÓN PROM / MES | Y28: ENE | Z28: FEB | AA28: MAR | AB28: ABR | AC28: MAY | AD28: JUN | AE28: JUL | AF28: AGO | AG28: SEP | AH28: OCT | AI28: NOV | AJ28: DIC | AK28: TOTAL DEDICACIÓN PROM / MES | AL28: TOTAL PROY / MES | AM28: VALOR HOMBRE/MES SEGÚN CATEGORÍA | AO28: DÍAS EFECTIVOS | AP28: COSTO TOTAL HOMBRE EN PROYECTO ($)
F29: PROFESIONAL/TÉCNICO/TÉCNOLOGO | G29: POSGRADO | H29: EXPERIENCIA GENERAL | I29: EXPERIENCIA ESPECIFICA | K29: 0 | L29: 0 | M29: 0 | N29: 0 | Q29: 30 | R29: 30 | S29: 30 | T29: 30 | U29: 30 | V29: 30 | W29: 30 | X29: =(SUM(K29:W29)/30)&" Meses" -> 7 Meses | AK29: =(SUM(Y29:AJ29)/30)&" Meses" -> 0 Meses | AL29: =(SUM(Y29:AJ29)/30+SUM(K29:W29)/30) -> 7 | AM29: RESOLUCION IDU | AN29: ='Tarifas IDRD'!K4 -> 2024 | AO29: 210
K30: =IF(K29=0,0,IF(K29=15,0.5,IF(K29=30,1,IF(K29=45,1.5,0)))) -> 0 | L30: 0 | M30: 0 | N30: 0 | O30: 0 | P30: 0 | Q30: 1 | R30: 1 | S30: 1 | T30: 1 | U30: 1 | V30: 1 | W30: =IF(W29=0,0,IF(W29=15,0.5,IF(W29=30,1,IF(W29=45,1.5,0)))) -> 1 | X30: =(SUM(K29:W29)/30) -> 7 | Y30: =IF(Y29=0,0,IF(Y29=15,0.5,IF(Y29=30,1,IF(Y29=45,1.5,0)))) -> 0 | Z30: 0 | AA30: 0 | AB30: 0 | AC30: 0 | AD30: 0 | AE30: 0 | AF30: 0 | AG30: 0 | AH30: 0 | AI30: 0 | AJ30: 0 | AK30: =SUM(Y29:AJ29)/30 -> 0 | AL30: =SUM(Y29:AJ29)/30+SUM(K29:W29)/30 -> 7
C31: 100142 | D31: PROFESIONAL CATEGORÍA 3 (E.G.6;E.E.4) | E31: RESIDENTE DE INTERVENTORIA: ARQUITECTURA | F31: Título Profesional en: - Arquitectura | G31: N/A | H31: Con experiencia general de seis (6) años | I31: Experiencia específica en mínimo cuatro (4) años y tres (3) proyectos como Residente de obra en proyectos de equipamientos públicos de categoría de alta complejidad. | J31: 1 | Q31: 0.7 | R31: 0.7 | S31: 0.7 | T31: 0.07 | U31: 0.7 | V31: 0.7 | W31: 0.7 | X31: =SUM(K31:W31) -> 4.27 | AK31: =SUM(Y31:AJ31) -> 0 | AL31: =PERSONAL!$AK31+PERSONAL!$X31 -> 4.27 | AM31: 4000000 | AN31: 0 | AO31: =(((PERSONAL!$X31*30)*$X$6)+(PERSONAL!$AK31*30)*$AK$6)*PERSONAL!$J31 -> 256.2 | AP31: =ROUND((X31*AM31+AK31*AN31)*J31,0) -> 17080000
C32: 13345 | E32: INSPECTOR DE INTERVENTORIA | J32: 1 | Q32: 1 | R32: 1 | S32: 1 | T32: 1 | U32: 1 | V32: 1 | W32: 1 | X32: =SUM(K32:W32) -> 7 | AK32: =SUM(Y32:AJ32) -> 0 | AL32: =PERSONAL!$AK32+PERSONAL!$X32 -> 7 | AM32: 2720000 | AN32: 0 | AO32: =(((PERSONAL!$X32*30)*$X$6)+(PERSONAL!$AK32*30)*$AK$6)*PERSONAL!$J32 -> 420 | AP32: =ROUND((X32*AM32+AK32*AN32)*J32,0) -> 19040000
C33: 100149 | D33: PROFESIONAL CATEGORÍA 4 (E.G.4;E.E.1) | E33: PROFESIONAL SG-SST | F33: Título Profesional en: - Profesional Seguridad Y Salud En El Trabajo o - Profesional En Gestión De La Seguridad Y Salud En El Trabajo - o - Administración En Salud Ocupacional o - Administración De La Seguridad Y Salud Ocupacional o - Ingeniería En Seguridad Y Salud En El Trabajo o - Profesional En Salud Ocupacional o - Ingeniero Ambiental o - Ingeniero Civil - Certificacion coordnador de trabajo en alturas | G33: Título de Postgrado en: - SISTEMAS INTEGRADOS DE SEGURIDAD Y SALUD OCUPACIONAL AMBIENTAL Y CALIDAD - SALUD OCUPACIONAL - GERENCIA DE LA SALUD OCUPACIONAL - HSEQ - SISTEMAS INTEGRADOS DE SEGURIDAD Y SALUD OCUPACIONAL AMBIENTAL Y CALIDAD - GERENCIA INTEGRAL DEL RIESGO, SEGURIDAD Y SALUD EN EL TRABAJO - GERENCIA EN SEGURIDAD Y SALUD EN EL TRABAJO - SEGURIDAD Y SALUD EN EL TRABAJO - GESTIÓN DE LA SEGURIDAD Y SALUD EN EL TRABAJO - GERENCIA DE SEGURIDAD Y SALUD EN EL TRABAJO - GESTIÓN DE LA SEGURIDAD Y SALUD EN EL TRABAJO - GERENCIA EN RIESGOS LABORALES, SEGURIDAD Y SALUD EN EL TRABAJO Con licencia vigente en salud ocupacional /SST, curso de 50 horas y 20 horas (cuando aplique), certificado de Coordinador de trabajo en alturas. | H33: Con experiencia profesional de cuatro (4) años y dos (2) años contados a apartir de la expedicion de la licencia SST | I33: Con experiencia profesional de y mínimo un (1) año y dos (2) proyectos como profesional responsable de la elaboración, implementación y seguimiento de Sistemas de Gestión de Seguridad y Salud en el Trabajo. | J33: 1 | Q33: 1 | R33: 1 | S33: 1 | T33: 1 | U33: 1 | V33: 1 | W33: 1 | X33: =SUM(K33:W33) -> 7 | AK33: =SUM(Y33:AJ33) -> 0 | AL33: =PERSONAL!$AK33+PERSONAL!$X33 -> 7 | AM33: 5130000 | AN33: 0 | AO33: =(((PERSONAL!$X33*30)*$X$6)+(PERSONAL!$AK33*30)*$AK$6)*PERSONAL!$J33 -> 420 | AP33: =ROUND((X33*AM33+AK33*AN33)*J33,0) -> 35910000
AJ34: SUBTOTAL PERSONAL | AP34: =SUM(AP31:AP33) -> 72030000
AJ35: FACTOR MULTIPLICADOR | AP35: 2.55
AJ36: TOTAL PERSONAL | AP36: =AP34*AP35 -> 183676500

Sheet FACTOR
A30: EL FIDEICOMISO FIDUBOGOTA S.A. - PROYECTO CONSTRUCCIÓN VIVIENDA NUEVA adelantará el presente proceso de contratación, aplicando la modalidad de la convocatoria simplificada,

Sheet OBSERVACIONES (hidden)
A1: REUNIONES Y OBSERVACIONES
A3: Taller diseño participativo para propuesta de intervención en el parque Gaitán Cortes | F3: 2023-05-04
A4: la comunidad en mayoría tomo la decisión de estar de acuerdo con la implementación del diseño de adecuación de zona verde con mobiliarios (propuesta número dos), siguiendo con ello se pasa a un diseño participativo con la comunidad para elegir que mobiliarios querían agregar en la zona verde para tener mayor claridad de la intervención, la comunidad agrego los siguientes mobiliarios:
A5: 1 | B5: Senderos lineales para evitar espacios oscuros
A6: 2 | B6: Mini golf
A7: 3 | B7: Jardinería
A8: 4 | B8: Juegos para los niños
A9: 5 | B9: Parque para los niños
A10: 6 | B10: Biblio parque
A11: 7 | B11: Zona de lectura
A12: 8 | B12: Zona verde cuadrada o rectangular
A13: 9 | B13: Bio- saludables
A14: 10 | B14: Máquinas para hacer ejercicio
A15: 11 | B15: Canecas de basura
A16: 12 | B16: Sendero en granulado de caucho
A24: ACTA DE REUNIÓN | F24: 2023-05-09
A25: Dentro de las observaciones que se tienen con respecto a la obra en mención se evidencian las siguientes:
A26: 1 | B26: La ubicación del mobiliario | H26: Diego
A27: 2 | B27: Poda de los árboles; para realizar esta actividad se necesita enviar solicitud al Jardín Botánico quien es la entidad encargada de esta labor teniendo en cuenta que los árboles que están plantados en el parque se encuentran referenciados por medio de placas. | H27: Ejecución
A28: 3 | B28: Los mobiliarios que se pretende instalar no concuerdan con las cantidades ni con las descripciones que fueron concertadas con la comunidad. | H28: Diego
A29: 4 | B29: Se debe revisar el tema de las señalizaciones que serán instaladas en las diferentes áreas del parque. | H29: Diego
A30: 5 | B30: Distribución de las áreas y el uso que se le va a dar a cada una de ellas. | H30: Diego
A31: 6 | B31: Revisar el tema de las barandas ubicadas en los alrededores de los juegos infantiles. | H31: Diego
A32: 7 | B32: Se deben revisar las áreas de cada mobiliario con el fin de verificar si cumplen con los requerimientos indicados en las cartillas de especificaciones técnicas que para estos espacios tiene el IDRD, lo anterior teniendo en cuenta que esto aumentaría temas de costos. | H32: Moises
A33: 8 | B33: Se sugiere reformular la instalación de los biosaludables teniendo en cuenta el excesivo costo. | H33: Diego y Moises
A34: 9 | B34: Verificar lista de precios de conformidad con lo que se va a construir y de acuerdo con las especificaciones técnicas puesto que son base para la construcción del proceso. | H34: Moises
A35: 10 | B35: Se expone por parte de las profesionales de la Dirección de Barrios que, si se realizan los cambios atendiendo las especificaciones técnicas dadas por el IDRD en los documentos que tienen como referencia para la construcción de estas obras, el presupuesto inicial que fue enviado por parte del Instituto Distrital para la Recreación y Deporte IDRD a la Caja de la Vivienda Popular tendría que modificarse.

Sheet INSUMO CIO (hidden)
A1: Cód. | B1: Descripción | C1: Un | D1: Grupo | E1: Proveedor | F1: %IVA | G1: Precio | H1: Fecha
A3: 12538 | B3: ABDOMEN (ABDOMINAL) OSAB - FUERZA | C3: UN | D3: DOTACION GIMNASIOS CEFE EQUIPOS PARA FUERZA | E3: 125457845 - FITNESS MARKET | F3: 19,00 % | G3: $ 11.152.292,00 | H3: 2019-10-23
A4: 107859 | B4: ABDOMEN (Abdominal/230 LBS) | C4: UN | D4: MOBILIARIO URBANO Y SEÑALIZAC. | F4: 0,00 % | G4: 0,00
A5: 104129 | B5: ABDOMINALES ADULTOS MAYORES-IDRD(SUM+TRANSP) | C5: UN | D5: MOBILIARIO URBANO Y SEÑALIZAC. | E5: 860061089 - IDRD - PROYECCIÓN | F5: 19,00 % | G5: $ 2.011.005,00 | H5: 2022-01-30
A6: 102466 | B6: ABONO ORGANICO | C6: KG | D6: JARDINERIA Y GRAMAS | E6: 860061089 - IDRD - PROYECCIÓN | F6: 19,00 % | G6: $ 5.281,01 | H6: 2022-01-31
A7: 106164 | B7: Abrazadaera Uacero inox.de 5/16"para Ø 2"+tuerca3 | C7: UN | D7: FERRETERIA | F7: 0,00 % | G7: 0,00
A8: 106298 | B8: ABRAZADERA EN U ACERO INOX-5/16"PARA Ø6"+TUERCA | C8: UN | D8: FERRETERIA | E8: 8956232 - IDRD - MEDIA ARMONICA COTIZACIONES | F8: 19,00 % | G8: $ 9.805,01 | H8: 2019-01-30
A9: 3707 | B9: ABRAZADERA 1 SALIDA | C9: UN | D9: INST. ELECTRICAS | F9: 0,00 % | G9: 0,00
A10: 2 | B10: ABRAZADERA 1" DELGADA DE CREMALLERA(A=9-10MM) | C10: UN | D10: INST. ELECTRICAS | F10: 0,00 % | G10: 0,00
A11: 101846 | B11: ABRAZADERA 1/2" a 3/4" Tub. HG** | C11: UN | D11: FERRETERIA | E11: 860061089 - IDRD - PROYECCIÓN | F11: 19,00 % | G11: $ 2.394,01 | H11: 2022-01-27
A12: 3 | B12: ABRAZADERA 1/2" DELGADA DE CREMALLERA | C12: UN | D12: INST. ELECTRICAS | F12: 0,00 % | G12: 0,00
A13: 105455 | B13: ABRAZADERA 2" INDUSTRIAL | C13: UN | D13: INST. HIDRAUL/SANIT. Y LAMINAS | E13: 8956232 - IDRD - MEDIA ARMONICA COTIZACIONES | F13: 19,00 % | G13: $ 4.900,00 | H13: 2022-07-15
A14: 105456 | B14: ABRAZADERA 3" INDUSTRIAL | C14: UN | D14: INST. HIDRAUL/SANIT. Y LAMINAS | F14: 0,00 % | G14: 0,00
A15: 105457 | B15: ABRAZADERA 4" INDUSTRIAL (ACERO ZINCADO) | C15: UN | D15: INST. HIDRAUL/SANIT. Y LAMINAS | E15: 66665555555 - IDRD - MEDIA ARITMETICA DE COTIZACIONES | F15: 19,00 % | G15: $ 5.003,00 | H15: 2020-01-10
A16: 107367 | B16: ABRAZADERA AJUSTABLE 3/4" | C16: UN | D16: SISTEMAS VENTILACION | F16: 0,00 % | G16: 0,00
A17: 107363 | B17: ABRAZADERA AJUSTABLE 3/8" | C17: UN | D17: SISTEMAS VENTILACION | F17: 0,00 % | G17: 0,00
A18: 107364 | B18: ABRAZADERA AJUSTABLE 5/8" | C18: UN | D18: SISTEMAS VENTILACION | F18: 0,00 % | G18: 0,00
A19: 107370 | B19: ABRAZADERA AJUSTABLE 7/8" | C19: UN | D19: SISTEMAS VENTILACION | F19: 0,00 % | G19: 0,00
A20: 108299 | B20: ABRAZADERA AJUSTABLE DE 1" | C20: UN | D20: SISTEMAS VENTILACION | E20: 89585454444 - CONTRATO CONSULTORIA CDRC 2 | F20: 19,00 % | G20: $ 780,00 | H20: 2019-09-27
A21: 108330 | B21: ABRAZADERA AJUSTABLE DE 1/2" ACABADO ZINCADO. | C21: UN | D21: SISTEMAS VENTILACION | E21: 89585454444 - CONTRATO CONSULTORIA CDRC 2 | F21: 19,00 % | G21: $ 650,00 | H21: 2019-09-27
A22: 108341 | B22: ABRAZADERA AJUSTABLE DE 3/4" | C22: UN | D22: SISTEMAS VENTILACION | E22: 89585454444 - CONTRATO CONSULTORIA CDRC 2 | F22: 19,00 % | G22: $ 780,00 | H22: 2019-09-27
A23: 104092 | B23: ABRAZADERA COLGANTE 2" | C23: UN | D23: MISCELANEA | F23: 0,00 % | G23: 0,00
A24: 104060 | B24: ABRAZADERA COLGANTE 3" | C24: UN | D24: MISCELANEA | F24: 0,00 % | G24: 0,00
A25: 101335 | B25: ABRAZADERA COLGANTE FIJA 2" AC1 | C25: UN | D25: INST. ELECTRICAS | E25: 860061089 - IDRD - PROYECCIÓN | F25: 19,00 % | G25: $ 1.208,00 | H25: 2020-01-13
A26: 101339 | B26: ABRAZADERA COLGANTE FIJA 3" AC1 | C26: UN | D26: INST. ELECTRICAS | F26: 0,00 % | G26: 0,00
A27: 101330 | B27: ABRAZADERA COLGANTE FIJA 1 1/4" AC1 | C27: UN | D27: INST. ELECTRICAS | F27: 0,00 % | G27: 0,00
A28: 101325 | B28: ABRAZADERA COLGANTE FIJA 1" AC1 | C28: UN | D28: INST. ELECTRICAS | E28: 860061089 - IDRD - PROYECCIÓN | F28: 19,00 % | G28: $ 765,00 | H28: 2020-01-13
A29: 101324 | B29: ABRAZADERA COLGANTE FIJA 3/4" AC1 | C29: UN | D29: INST. ELECTRICAS | E29: 860061089 - IDRD - PROYECCIÓN | F29: 19,00 % | G29: $ 1.210,00 | H29: 2022-01-31
A30: 102867 | B30: ABRAZADERA DE 1" | C30: UN | D30: MISCELANEA | E30: 860061089 - IDRD - PROYECCIÓN | F30: 19,00 % | G30: $ 465,00 | H30: 2020-01-13
A31: 102869 | B31: ABRAZADERA DE 11/2" | C31: UN | D31: MISCELANEA | E31: 860061089 - IDRD - PROYECCIÓN | F31: 19,00 % | G31: $ 1.480,00 | H31: 2020-01-13
A32: 102868 | B32: ABRAZADERA DE 11/4" | C32: UN | D32: MISCELANEA | E32: 860061089 - IDRD - PROYECCIÓN | F32: 19,00 % | G32: $ 951,00 | H32: 2022-02-09
A33: 105195 | B33: ABRAZADERA EN "U"Ø2"-PLATINA 1"X1/8" FIJAR PARED | C33: UN | D33: TUBERIA | E33: 860061089 - IDRD - PROYECCIÓN | F33: 19,00 % | G33: $ 3.084,00 | H33: 2023-03-28
A34: 3701 | B34: ABRAZADERA EN U TIPO-3 Ø210MM | C34: UN | D34: INST. ELECTRICAS | E34: 860061089 - IDRD - PROYECCIÓN | F34: 19,00 % | G34: $ 21.999,01 | H34: 2023-03-29
A35: 106759 | B35: ABRAZADERA EN U TIPO-1 | C35: UN | D35: ALAMBRES | E35: 66665555555 - IDRD - MEDIA ARITMETICA DE COTIZACIONES | F35: 19,00 % | G35: $ 15.117,00 | H35: 2019-09-30
A36: 103403 | B36: Abrazadera en"U"Doble Ala+2-perf.Ø3/8"(Para Tub 6" | C36: UN | D36: MISCELANEA | E36: 860061089 - IDRD - PROYECCIÓN | F36: 19,00 % | G36: $ 11.961,00 | H36: 2022-06-07
A37: 102514 | B37: Abrazadera Met.Doble Ala 3/4"Para Tubo metalico | C37: UN | D37: INST. ELECTRICAS | E37: 860061089 - IDRD - PROYECCIÓN | F37: 19,00 % | G37: $ 534,00 | H37: 2023-03-29
A38: 104768 | B38: ABRAZADERA METALICA DOBLE ALA 3/4" | C38: UN | D38: INST. ELECTRICAS | F38: 0,00 % | G38: 0,00
A39: 101308 | B39: ABRAZADERA METALICA TIPO TRAPECIO 1 1/4" ** | C39: UN | D39: INST. ELECTRICAS | F39: 0,00 % | G39: 0,00
A40: 101307 | B40: ABRAZADERA METALICA TIPO TRAPECIO 1" ** | C40: UN | D40: INST. ELECTRICAS | F40: 0,00 % | G40: 0,00
A41: 101305 | B41: ABRAZADERA METALICA TIPO TRAPECIO 1/2" ** | C41: UN | D41: INST. ELECTRICAS | E41: 860061089 - IDRD - PROYECCIÓN | F41: 19,00 % | G41: $ 387,00 | H41: 2022-01-31
A42: 101310 | B42: ABRAZADERA METALICA TIPO TRAPECIO 2 1/2" ** | C42: UN | D42: INST. ELECTRICAS | F42: 0,00 % | G42: 0,00
A43: 101311 | B43: ABRAZADERA METALICA TIPO TRAPECIO 3" ** | C43: UN | D43: INST. ELECTRICAS | F43: 0,00 % | G43: 0,00
A44: 101306 | B44: ABRAZADERA METALICA TIPO TRAPECIO 3/4" ** | C44: UN | D44: INST. ELECTRICAS | E44: 860061089 - IDRD - PROYECCIÓN | F44: 19,00 % | G44: $ 552,01 | H44: 2022-01-31
A45: 105792 | B45: Abrazadera Metalica y tornillo Acero Inoxidable | C45: UN | D45: MOBILIARIO URBANO Y SEÑALIZAC. | E45: 860061089 - IDRD - PROYECCIÓN | F45: 19,00 % | G45: $ 10.769,00 | H45: 2022-01-30
A46: 106350 | B46: Abrazadera Metalica+Tornillo seguridad (Reja Acero | C46: UN | D46: MOBILIARIO URBANO Y SEÑALIZAC. | E46: 860061089 - IDRD - PROYECCIÓN | F46: 19,00 % | G46: $ 13.144,00 | H46: 2022-01-30
A47: 105336 | B47: ABRAZADERA PARA TUBERIA EMT Ø1" | C47: UN | D47: TUBERIA | F47: 0,00 % | G47: 0,00
A48: 107279 | B48: ABRAZADERA PERA AISLAMIENTO DIELÉC. 1 1/2" | C48: UN | D48: INST. DE GAS | F48: 0,00 % | G48: 0,00
A49: 107278 | B49: ABRAZADERA PERA AISLAMIENTO DIELÉC. 1 1/4" | C49: UN | D49: INST. DE GAS | F49: 0,00 % | G49: 0,00
A50: 107277 | B50: ABRAZADERA PERA AISLAMIENTO DIELÉC. 1" | C50: UN | D50: INST. DE GAS | F50: 0,00 % | G50: 0,00
A51: 107275 | B51: ABRAZADERA PERA AISLAMIENTO DIELÉC. 1/2" | C51: UN | D51: INST. DE GAS | F51: 0,00 % | G51: 0,00
A52: 107280 | B52: ABRAZADERA PERA AISLAMIENTO DIELÉC. 2" | C52: UN | D52: INST. DE GAS | F52: 0,00 % | G52: 0,00
A53: 107281 | B53: ABRAZADERA PERA AISLAMIENTO DIELÉC. 3" | C53: UN | D53: INST. DE GAS | F53: 0,00 % | G53: 0,00
A54: 107276 | B54: ABRAZADERA PERA AISLAMIENTO DIELÉC. 3/4" | C54: UN | D54: INST. DE GAS | F54: 0,00 % | G54: 0,00
A55: 107022 | B55: ABRAZADERA PERA GALVANIZADA UL/FM 1/2" | C55: UN | D55: INST. HIDRAUL/SANIT. Y LAMINAS | E55: 47874222222 - CONTRATO CONSULTORIA CDRC 1 | F55: 19,00 % | G55: $ 1.273,00 | H55: 2019-09-30
A56: 107023 | B56: ABRAZADERA PERA GALVANIZADA UL/FM 3/4" | C56: UN | D56: ACCESORIOS HIDROSANITARIOS | E56: 47874222222 - CONTRATO CONSULTORIA CDRC 1 | F56: 19,00 % | G56: $ 1.314,00 | H56: 2019-09-30
A57: 107025 | B57: ABRAZADERA PERA GALVANIZADA UL/FM 6" | C57: UN | D57: ACCESORIOS HIDROSANITARIOS | E57: 47874222222 - CONTRATO CONSULTORIA CDRC 1 | F57: 19,00 % | G57: $ 8.303,00 | H57: 2019-09-30
A58: 107026 | B58: ABRAZADERA PERA GALVANIZADA UL/FM 8" | C58: UN | D58: ACCESORIOS HIDROSANITARIOS | F58: 0,00 % | G58: 0,00
A59: 3849 | B59: ABRAZADERA PLASTICA 3/8"PARA TUBO COBRE | C59: UN | D59: FERRETERIA | F59: 0,00 % | G59: 0,00
A60: 3846 | B60: ABRAZADERA PLASTICA 5/8" | C60: UN | D60: FERRETERIA | F60: 0,00 % | G60: 0,00
A61: 3791 | B61: ABRAZADERA SIN SALIDA | C61: UN | D61: INST. ELECTRICAS | F61: 0,00 % | G61: 0,00
A62: 108742 | B62: Abrazadera tipo horquilla 4" | C62: UN | D62: SISTEMAS VENTILACION | F62: 0,00 % | G62: 0,00
A63: 108693 | B63: Abrazadera tipo horquilla 6" | C63: UN | D63: SISTEMAS VENTILACION | F63: 0,00 % | G63: 0,00
A64: 104679 | B64: ABRAZADERA TIPO PERA DE 2 1/2" | C64: UN | D64: TUBERIA SUBT,REJILLAS,SUMIDER. | F64: 0,00 % | G64: 0,00
A65: 104680 | B65: ABRAZADERA TIPO PERA DE 3" | C65: UN | D65: TUBERIA SUBT,REJILLAS,SUMIDER. | F65: 0,00 % | G65: 0,00
A66: 106186 | B66: ABRAZADERA TIPO PERA O TRAPECIO 3" ACERO NEGRO | C66: UN | D66: ACCESORIOS HIDROSANITARIOS | E66: 860061089 - IDRD - PROYECCIÓN | F66: 19,00 % | G66: $ 3.741,00 | H66: 2020-01-13
A67: 106185 | B67: ABRAZADERA TIPO PERA O TRAPECIO 4" ACERO NEGRO | C67: UN | D67: ACCESORIOS HIDROSANITARIOS | E67: 6555555555 - IDRD - MENOR VALOR DE COTIZACIONES | F67: 19,00 % | G67: $ 6.383,01 | H67: 2019-09-27
A68: 106259 | B68: ABRAZADERA TIPO PERA/ TRAPECIO 1 ¼" ACERO NEGRO | C68: UN | D68: ACCESORIOS HIDROSANITARIOS | E68: 66665555555 - IDRD - MEDIA ARITMETICA DE COTIZACIONES | F68: 19,00 % | G68: $ 1.360,00 | H68: 2019-04-01
A69: 106260 | B69: ABRAZADERA TIPO PERA/ TRAPECIO 1 ½" ACERO NEGRO | C69: UN | D69: ACCESORIOS HIDROSANITARIOS | E69: 860061089 - IDRD - PROYECCIÓN | F69: 19,00 % | G69: $ 1.577,00 | H69: 2020-01-13
A70: 106261 | B70: ABRAZADERA TIPO PERA/ TRAPECIO 2" ACERO NEGRO | C70: UN | D70: ACCESORIOS HIDROSANITARIOS | E70: 860061089 - IDRD - PROYECCIÓN | F70: 19,00 % | G70: $ 1.612,00 | H70: 2020-01-13
A71: 106258 | B71: ABRAZADERA TIPO PERA/TRAPECIO 1" ACERO NEGRO | C71: UN | D71: ACCESORIOS HIDROSANITARIOS | E71: 66665555555 - IDRD - MEDIA ARITMETICA DE COTIZACIONES | F71: 19,00 % | G71: $ 1.495,00 | H71: 2019-04-01
A72: 106263 | B72: ABRAZADERA TIPO PERA/TRAPECIO 3" ACERO NEGRO | C72: UN | D72: ACCESORIOS HIDROSANITARIOS | E72: 860061089 - IDRD - PROYECCIÓN | F72: 19,00 % | G72: $ 3.741,00 | H72: 2020-01-13
A73: 106264 | B73: ABRAZADERA TIPO PERA/TRAPECIO 4" ACERO NEGRO | C73: UN | D73: ACCESORIOS HIDROSANITARIOS | E73: 860061089 - IDRD - PROYECCIÓN | F73: 19,00 % | G73: $ 6.601,00 | H73: 2020-01-13
A74: 106262 | B74: ABRAZADERA TIPO PERA/TRAPECIO 2 1/2”" ACERO NEGRO | C74: UN | D74: ACCESORIOS HIDROSANITARIOS | E74: 860061089 - IDRD - PROYECCIÓN | F74: 19,00 % | G74: $ 2.279,00 | H74: 2020-01-13
A75: 101900 | B75: Abrazadera Tipo Pera/Trapecio 6" | C75: UN | D75: INST. ELECTRICAS | E75: 860061089 - IDRD - PROYECCIÓN | F75: 19,00 % | G75: $ 14.786,00 | H75: 2022-01-28
A76: 106165 | B76: Abrazadera Uacero inox.de 1/4"para Ø 1"+tuerca | C76: UN | D76: FERRETERIA | E76: 860061089 - IDRD - PROYECCIÓN | F76: 19,00 % | G76: $ 856,00 | H76: 2022-01-27
A77: 106167 | B77: Abrazadera Uacero inox.de 1/4"para Ø 11/2"+tuerca | C77: UN | D77: FERRETERIA | F77: 0,00 % | G77: 0,00
A78: 106166 | B78: Abrazadera Uacero inox.de 1/4"para Ø 11/4"+tuerca | C78: UN | D78: FERRETERIA | F78: 0,00 % | G78: 0,00
A79: 106168 | B79: Abrazadera Uacero inox.de 5/16"para Ø 2"+tuerca | C79: UN | D79: FERRETERIA | F79: 0,00 % | G79: 0,00
A80: 106169 | B80: Abrazadera Uacero inox.de 5/16"para Ø 3"+tuerca | C80: UN | D80: FERRETERIA | F80: 0,00 % | G80: 0,00
A81: 106189 | B81: Abrazadera Uacero inox.de 5/16"para Ø 6"+tuerca | C81: UN | D81: FERRETERIA | F81: 0,00 % | G81: 0,00
A82: 105158 | B82: ABRAZADERA"U"Doble Ala+2- Perf.3/8"(Para Tubo 3") | C82: UN | D82: INST. HIDRAUL/SANIT. Y LAMINAS | F82: 0,00 % | G82: 0,00
A83: 106533 | B83: ABRAZADERAS METÁLICA DOBLE TORNILLO PARATUBO 1/2" | C83: UN | D83: TUBERIA | F83: 0,00 % | G83: 0,00
A84: 104222 | B84: Abrillantador de 40 cm3 | C84: UN | D84: MISCELANEA | F84: 0,00 % | G84: 0,00
A85: 107153 | B85: Acabado texturizado acrilico ref. cover up de | C85: GLN | D85: PINTURAS | F85: 0,00 % | G85: 0,00
A86: 3482 | B86: ACABADOS FACHALETA DE PVC | C86: M2 | D86: Enchapes | F86: 0,00 % | G86: 0,00
A87: 105188 | B87: ACANTO - Planta ornamental | C87: UN | D87: ARBOLES Y PLANTAS | F87: 0,00 % | G87: 0,00
A88: 108572 | B88: Acanto /Alcanthus mollis | C88: UN | D88: JARDINERIA Y GRAMAS | F88: 0,00 % | G88: 0,00
A89: 108530 | B89: Acanto Planta ornamental | C89: UN | D89: JARDINERIA Y GRAMAS | F89: 0,00 % | G89: 0,00
A90: 700 | B90: ACCELGUARD HE 5 KILOS | C90: KG | D90: IMPERMEABIL.,ADITIVOS,QUIMICOS | F90: 0,00 % | G90: 0,00
A91: 109044 | B91: ACCES POINT UAP-AC-PRO-E 5GHz y 2.4 GHzUN1 | C91: UN | D91: APARATOS ELECTRICOS | F91: 0,00 % | G91: 0,00
A92: 102159 | B92: Acces Point Inalambrico POE | C92: UN | D92: APARATOS ELECTRICOS | E92: 77777777777 - CONTRATO CONSULTORIA CEFE COMETAS | F92: 19,00 % | G92: $ 2.326.264,00 | H92: 2019-07-09
A93: 102175 | B93: Acces point inalambrico POE | C93: UN | D93: MISCELANEA | E93: NINGUNO EN PARTICULAR | F93: 19,00 % | G93: $ 2.326.264,00 | H93: 2019-07-11
A94: 2810 | B94: ACCES.T P/BANDEJA T ESCAL | C94: UN | D94: CABLEADO ESTRUCTURADO | E94: 860061089 - IDRD - PROYECCIÓN | F94: 19,00 % | G94: $ 61.622,96 | H94: 2020-01-14
A95: 3748 | B95: ACCES.T P/CANALETA PLAST. | C95: UN | D95: CABLEADO ESTRUCTURADO | F95: 0,00 % | G95: 0,00
A96: 107399 | B96: ACCESOR Y ELEMEN DE ANCLAJE PARA TABLERO ELECT | C96: UN | D96: SISTEMAS VENTILACION | F96: 0,00 % | G96: 0,00
A97: 103517 | B97: ACCESORIO CONEXION POSTERIOR SANIT. INSTITUCIONAL | C97: UN | D97: GRIFERIAS,APARATOS,ACCESORIOS | E97: 860061089 - IDRD - PROYECCIÓN | F97: 19,00 % | G97: $ 196.013,00 | H97: 2022-06-03
A98: 108589 | B98: Accesorio tipo base para instalacion de luminarias | C98: UN | D98: MISCELANEA | F98: 0,00 % | G98: 0,00
A99: 102552 | B99: Accesorios de Conexión para Manguera de Riego** | C99: UN | D99: GRIFERIAS,APARATOS,ACCESORIOS | E99: 860061089 - IDRD - PROYECCIÓN | F99: 19,00 % | G99: $ 6.245,00 | H99: 2023-03-31
A100: 101421 | B100: ACCESORIOS ELECTRICOS** | C100: UN | D100: INST. ELECTRICAS | E100: 860061089 - IDRD - PROYECCIÓN | F100: 19,00 % | G100: $ 14.046,00 | H100: 2022-12-21
A101: 108802 | B101: ACCESORIOS - GL - CDRC | C101: GL | D101: Alfombra | F101: 0,00 % | G101: 0,00
A102: 108630 | B102: Accesorios (Sctiker BAXXXXX y Sctiker Potencia) | C102: ?? | D102: MISCELANEA | F102: 0,00 % | G102: 0,00
A103: 104481 | B103: ACCESORIOS CONEX. VALVULA ANTIVAND. A ORINAL | C103: UN | D103: APARATOS | F103: 0,00 % | G103: 0,00
A104: 104296 | B104: Accesorios Conex.Valv.Antiv.a Sanit.BRIGGSx Encima | C104: UN | D104: GRIFERIAS,APARATOS,ACCESORIOS | E104: 555555555555 - IDRD - MEDIANA DE COTIZACIONES | F104: 19,00 % | G104: $ 85.680,00 | H104: 2019-10-22
A105: 108725 | B105: Accesorios de conexión de 2 1/2" | C105: UN | D105: SISTEMAS VENTILACION | F105: 0,00 % | G105: 0,00
A106: 102555 | B106: ACCESORIOS DE CONEXION INSTALACIONES HIDRÁULICAS** | C106: GL | D106: GRIFERIAS,APARATOS,ACCESORIOS | E106: 860061089 - IDRD - PROYECCIÓN | F106: 19,00 % | G106: $ 17.530,00 | H106: 2023-03-23
A107: 101772 | B107: ACCESORIOS DE FIJACIÓN ** | C107: GL | D107: GRIFERIAS,APARATOS,ACCESORIOS | E107: 860.001.498-9 - CONSTRUDATA | F107: 19,00 % | G107: $ 14.439,00 | H107: 2023-03-22
A108: 100074 | B108: Accesorios para bandeja 60*10 tipo escalera ** | C108: UN | D108: CABLEADO ESTRUCTURADO | F108: 0,00 % | G108: 0,00
A109: 102710 | B109: ACCESORIOS PARA BAÑO BLANCO 4 PIEZAS. | C109: UN | D109: ACCESORIOS | F109: 0,00 % | G109: 0,00
A110: 104669 | B110: Accesorios piso en madera (remates, tapaluces...) | C110: M2 | D110: MADERAS | F110: 0,00 % | G110: 0,00
A111: 105953 | B111: ACCESORIOS PVC 2"/1" (incluye sold.limp.lubri.cin) | C111: GL | D111: INST. HIDRAUL/SANIT. Y LAMINAS | F111: 0,00 % | G111: 0,00
A112: 108210 | B112: ACCESORIOS SWITCH DIFERENCIAL | C112: UN | D112: SISTEMAS VENTILACION | F112: 0,00 % | G112: 0,00
A113: 107172 | B113: ACCESORIOS Y ELEMENTOS DE FIJACIÓN UNIDADES VENTIL | C113: UN | D113: SISTEMAS VENTILACION | E113: 47874222222 - CONTRATO CONSULTORIA CDRC 1 | F113: 19,00 % | G113: $ 15.313,00 | H113: 2019-08-14
A114: 103357 | B114: AccesoriosConexiónValv.deSanitarioInstitucional | C114: UN | D114: GRIFERIAS,APARATOS,ACCESORIOS | F114: 0,00 % | G114: 0,00
A115: 101883 | B115: AccPis-SalModCruzado-PletinaRectangulaCRDC-COMETAS | C115: UN | D115: PISCINAS | E115: 77777777777 - CONTRATO CONSULTORIA CEFE COMETAS | F115: 19,00 % | G115: $ 1.700.000,00 | H115: 2019-04-23
A116: 105536 | B116: ACEITE 20 W -40 | C116: UN | D116: COMBUSTIBLES | E116: 222555555555511111 - LUBRITODO | F116: 19,00 % | G116: $ 20.092,01 | H116: 2019-12-10
A117: 2852 | B117: ACELERANTE FRAGUADO,RESISTENCIA (230kg) Sikaset L | C117: KG | D117: IMPERMEABIL.,ADITIVOS,QUIMICOS | F117: 0,00 % | G117: 0,00
A118: 576 | B118: ACELERANTE PARA MORTEROS SIKA-3 5 KLG | C118: KG | D118: IMPERMEABIL.,ADITIVOS,QUIMICOS | F118: 0,00 % | G118: 0,00
A119: 2633 | B119: ACELERANTE PARA MORTEROS SIKA-3-23.0 KLG | C119: KG | D119: IMPERMEABIL.,ADITIVOS,QUIMICOS | F119: 0,00 % | G119: 0,00
A120: 101477 | B120: Acero Estruct.ASTM A-572 Viga(IPE450) Perfi.Cubier | C120: KG | D120: CERCHAS,VIGAS, ANG, PERFILES | E120: 860061089 - IDRD - PROYECCIÓN | F120: 19,00 % | G120: $ 9.855,00 | H120: 2023-03-31
A121: 1734 | B121: ACERO FIG. DE 1/4" A 1" 60.000 LBS | C121: KG | D121: ACEROS Y HIERROS | E121: 8956232 - IDRD - MEDIA ARMONICA COTIZACIONES | F121: 19,00 % | G121: $ 2.926,00 | H121: 2019-07-04
A122: 107686 | B122: AceroEstruct.PuentePetaonalTipoTransmilenio | C122: KG | D122: ACEROS,HIERROS/MALLAS,CERCHAS | E122: 2565698 - IDU | F122: 19,00 % | G122: $ 12.630,01 | H122: 2019-04-30
A123: 12964 | B123: ACIDO ESTABILIZADOR DE PH DECAPANTE (ACIDO MURIATICO) x Litro | C123: LT | D123: PISCINAS | E123: 860061089 - IDRD - PROYECCIÓN | F123: 19,00 % | G123: $ 5.782,00 | H123: 2022-01-31
A124: 100392 | B124: Acido muriatico (Clorhidrico) ** | C124: GLN | D124: IMPERMEABILIZANTES | E124: 860061089 - IDRD - PROYECCIÓN | F124: 19,00 % | G124: $ 26.124,00 | H124: 2023-03-29
A125: 100393 | B125: ACIDO NITRICO ** | C125: GLN | D125: IMPERMEABILIZANTES | E125: 66665555555 - IDRD - MEDIA ARITMETICA DE COTIZACIONES | F125: 19,00 % | G125: $ 20.073,00 | H125: 2023-03-24
A126: 105623 | B126: Acometida en cable de aluminio 7 hilos con aislami | C126: ML | D126: INST. ELECTRICAS | F126: 0,00 % | G126: 0,00
A127: 1569 | B127: ACOMETIDA PISO ACUEDUCTO ½" | C127: UN | D127: TARIFAS Y SERVICIOS | F127: 0,00 % | G127: 0,00
A128: 1568 | B128: ACOMETIDA PISO ACUEDUCTO 1" | C128: UN | D128: TARIFAS Y SERVICIOS | F128: 0,00 % | G128: 0,00
A129: 1567 | B129: ACOMETIDA PISO ACUEDUCTO 1½" | C129: UN | D129: TARIFAS Y SERVICIOS | F129: 0,00 % | G129: 0,00
A130: 1570 | B130: ACOMETIDA PISO ACUEDUCTO 2" | C130: UN | D130: TARIFAS Y SERVICIOS | F130: 0,00 % | G130: 0,00
A131: 1571 | B131: ACOMETIDA PISO ACUEDUCTO 3" | C131: UN | D131: TARIFAS Y SERVICIOS | F131: 0,00 % | G131: 0,00
A132: 2201 | B132: ACOMETIDA PISO ACUEDUCTO 4" | C132: UN | D132: TARIFAS Y SERVICIOS | F132: 0,00 % | G132: 0,00
A133: 2202 | B133: ACOMETIDA PISO ACUEDUCTO 6" | C133: UN | D133: TARIFAS Y SERVICIOS | F133: 0,00 % | G133: 0,00
A134: 101026 | B134: ACOMETIDA PISO ACUEDUCTO ½" Andén Adoq. IDU** | C134: UN | D134: TARIFAS Y SERVICIOS | F134: 0,00 % | G134: 0,00
A135: 101025 | B135: ACOMETIDA PISO ACUEDUCTO ½" Andén Conc.** | C135: UN | D135: TARIFAS Y SERVICIOS | F135: 0,00 % | G135: 0,00
A136: 101024 | B136: ACOMETIDA PISO ACUEDUCTO ½" Andén Loseta IDU** | C136: UN | D136: TARIFAS Y SERVICIOS | F136: 0,00 % | G136: 0,00
A137: 101036 | B137: ACOMETIDA PISO ACUEDUCTO 1 1/2" Andén Conc.** | C137: UN | D137: TARIFAS Y SERVICIOS | F137: 0,00 % | G137: 0,00
A138: 101037 | B138: ACOMETIDA PISO ACUEDUCTO 1 1/2" Andén Loseta IDU** | C138: UN | D138: TARIFAS Y SERVICIOS | F138: 0,00 % | G138: 0,00
A139: 101034 | B139: ACOMETIDA PISO ACUEDUCTO 1" Andén Adoq. IDU** | C139: UN | D139: TARIFAS Y SERVICIOS | F139: 0,00 % | G139: 0,00
A140: 101033 | B140: ACOMETIDA PISO ACUEDUCTO 1" Andén Conc.** | C140: UN | D140: TARIFAS Y SERVICIOS | F140: 0,00 % | G140: 0,00
A141: 101032 | B141: ACOMETIDA PISO ACUEDUCTO 1" Andén Loseta IDU** | C141: UN | D141: TARIFAS Y SERVICIOS | F141: 0,00 % | G141: 0,00
A142: 101038 | B142: ACOMETIDA PISO ACUEDUCTO 2" Andén Conc.** | C142: UN | D142: TARIFAS Y SERVICIOS | F142: 0,00 % | G142: 0,00
A143: 101039 | B143: ACOMETIDA PISO ACUEDUCTO 2" Andén Loseta IDU** | C143: UN | D143: TARIFAS Y SERVICIOS | F143: 0,00 % | G143: 0,00
A144: 101040 | B144: ACOMETIDA PISO ACUEDUCTO 3" Andén Conc.** | C144: UN | D144: TARIFAS Y SERVICIOS | F144: 0,00 % | G144: 0,00
A145: 101041 | B145: ACOMETIDA PISO ACUEDUCTO 3" Andén Loseta IDU** | C145: UN | D145: TARIFAS Y SERVICIOS | F145: 0,00 % | G145: 0,00
A146: 101029 | B146: ACOMETIDA PISO ACUEDUCTO 3/4" Andén Adoq. IDU** | C146: UN | D146: TARIFAS Y SERVICIOS | F146: 0,00 % | G146: 0,00
A147: 101030 | B147: ACOMETIDA PISO ACUEDUCTO 3/4" Andén Conc.** | C147: UN | D147: TARIFAS Y SERVICIOS | F147: 0,00 % | G147: 0,00
A148: 101028 | B148: ACOMETIDA PISO ACUEDUCTO 3/4" Andén Loseta IDU** | C148: UN | D148: TARIFAS Y SERVICIOS | F148: 0,00 % | G148: 0,00
A149: 101042 | B149: ACOMETIDA PISO ACUEDUCTO 4" Andén Conc.** | C149: UN | D149: TARIFAS Y SERVICIOS | F149: 0,00 % | G149: 0,00
A150: 101043 | B150: ACOMETIDA PISO ACUEDUCTO 4" Andén Loseta IDU** | C150: UN | D150: TARIFAS Y SERVICIOS | F150: 0,00 % | G150: 0,00
A151: 101044 | B151: ACOMETIDA PISO ACUEDUCTO 6" Andén Conc.** | C151: UN | D151: TARIFAS Y SERVICIOS | F151: 0,00 % | G151: 0,00
A152: 101045 | B152: ACOMETIDA PISO ACUEDUCTO 6" Andén Loseta IDU** | C152: UN | D152: TARIFAS Y SERVICIOS | F152: 0,00 % | G152: 0,00
A153: 106223 | B153: ACOPLE FLEXIBLE HIERRO DUCTIL RANURADO Ø 1 1/2" | C153: UN | D153: RED CONTRA INCENDIO | E153: 66665555555 - IDRD - MEDIA ARITMETICA DE COTIZACIONES | F153: 19,00 % | G153: $ 7.797,00 | H153: 2020-01-10
A154: 106225 | B154: ACOPLE FLEXIBLE HIERRO DUCTIL RANURADO Ø 2 1/2" | C154: UN | D154: RED CONTRA INCENDIO | E154: 860061089 - IDRD - PROYECCIÓN | F154: 19,00 % | G154: $ 9.854,00 | H154: 2022-03-02
A155: 106224 | B155: ACOPLE FLEXIBLE HIERRO DUCTIL RANURADO Ø 2" | C155: UN | D155: RED CONTRA INCENDIO | E155: 66665555555 - IDRD - MEDIA ARITMETICA DE COTIZACIONES | F155: 19,00 % | G155: $ 8.579,00 | H155: 2022-01-31
A156: 106226 | B156: ACOPLE FLEXIBLE HIERRO DUCTIL RANURADO Ø 3" | C156: UN | D156: RED CONTRA INCENDIO | E156: 860061089 - IDRD - PROYECCIÓN | F156: 19,00 % | G156: $ 12.468,00 | H156: 2022-03-02
A157: 106227 | B157: ACOPLE FLEXIBLE HIERRO DUCTIL RANURADO Ø 4" | C157: UN | D157: RED CONTRA INCENDIO | E157: 66665555555 - IDRD - MEDIA ARITMETICA DE COTIZACIONES | F157: 19,00 % | G157: $ 14.392,00 | H157: 2020-01-10
A158: 106228 | B158: ACOPLE FLEXIBLE HIERRO DUCTIL RANURADO Ø 6" | C158: UN | D158: RED CONTRA INCENDIO | F158: 0,00 % | G158: 0,00
A159: 103239 | B159: ACOPLE FLEXIBLE LAVAMANOS PLAST(1/2X1/2")L=40CM | C159: UN | D159: INST. HIDRAUL/SANIT. Y LAMINAS | E159: 555555555555 - IDRD - MEDIANA DE COTIZACIONES | F159: 19,00 % | G159: $ 4.250,00 | H159: 2023-03-21
A160: 103143 | B160: Acople a desague hasta 4"(Imperm. membranas Sint.) | C160: UN | D160: MISCELANEA | E160: 860061089 - IDRD - PROYECCIÓN | F160: 19,00 % | G160: $ 56.036,01 | H160: 2023-03-27
A161: 102954 | B161: Acople Completo ** | C161: UN | D161: MOBILIARIO URBANO Y SEÑALIZAC. | E161: 860061089 - IDRD - PROYECCIÓN | F161: 19,00 % | G161: $ 42.089,00 | H161: 2023-03-24
A162: 103507 | B162: Acople en S (3/8") para columpio(Rodamient+ Buje) | C162: UN | D162: MOBILIARIO URBANO Y SEÑALIZAC. | F162: 0,00 % | G162: 0,00
A163: 109116 | B163: ACOPLE FLEXIBLE METALICO (LAV) Sum + Inst | C163: UN | D163: INST. HIDRAUL/SANIT. Y LAMINAS | F163: 0,00 % | G163: 0,00
A164: 17 | B164: ACOPLE PARA LAVAMANOS Y SANITARIO PLASTICO | C164: UN | D164: ACCESORIOS HIDROSANITARIOS | F164: 0,00 % | G164: 0,00
A165: 813 | B165: ACOPLE PLAST. SANITARIO ó LAVAMANOS. ½"X1/2" 40CM | C165: UN | D165: ACCESORIOS HIDROSANITARIOS | F165: 0,00 % | G165: 0,00
A166: 104551 | B166: acople plástico de 1/2"x1/2" (L=0.60m) | C166: UN | D166: ACCESORIOS HIDROSANITARIOS | F166: 0,00 % | G166: 0,00
A167: 103241 | B167: ACOPLE SANITARIO ½"X7/8" Con Registro PLASTICOL=40CM | C167: UN | D167: INST. HIDRAUL/SANIT. Y LAMINAS | E167: 860061089 - IDRD - PROYECCIÓN | F167: 19,00 % | G167: $ 3.419,00 | H167: 2022-01-29
A168: 101868 | B168: Acople Sanitario/Lav de 1/2" plastico 40cms | C168: UN | D168: REGISTROS Y CHEQUES | E168: 860061089 - IDRD - PROYECCIÓN | F168: 19,00 % | G168: $ 4.332,00 | H168: 2023-03-29
A169: 100431 | B169: Acoples columpio Modulo 5 (Sumin e Ins) ** | C169: UN | D169: OTROS PREFABRICADOS | F169: 0,00 % | G169: 0,00
A170: 102497 | B170: Acoples de Teflón(Sumin) ** | C170: ML | D170: OTROS PREFABRICADOS | F170: 0,00 % | G170: 0,00
A171: 102957 | B171: Acoples en U lámina Cal. 3/16"(Sumin ) ** | C171: UN | D171: OTROS PREFABRICADOS | E171: 860061089 - IDRD - PROYECCIÓN | F171: 19,00 % | G171: $ 67.511,00 | H171: 2023-03-29
A172: 102634 | B172: Acoples Sencillo columpio (Sumin ) ** | C172: UN | D172: OTROS PREFABRICADOS | E172: 860061089 - IDRD - PROYECCIÓN | F172: 19,00 % | G172: $ 48.584,00 | H172: 2023-03-24
A173: 108196 | B173: ACOPLES Y ACCESORIOS CONEXIÓN TUBERÍA | C173: UN | D173: SISTEMAS VENTILACION | F173: 0,00 % | G173: 0,00
A174: 106525 | B174: ACOPLES-BRONCE MACHO Y HEMBRA TIPO CONVENCIONAL | C174: UN | D174: FERRETERIA | F174: 0,00 % | G174: 0,00
A175: 633 | B175: ACPM* | C175: GLN | D175: COMBUSTIBLES | E175: 999XXX-1 - MINISTERIO DE MINAS Y ENERGIA | F175: 0,00 % | G175: $ 9.456,00 | H175: 2020-01-09
A176: 102229 | B176: ACPM** | C176: GLN | D176: COMBUSTIBLES | E176: 999XXX-1 - MINISTERIO DE MINAS Y ENERGIA | F176: 0,00 % | G176: $ 9.357,00 | H176: 2023-03-23
A177: 12870 | B177: ACRILIC ADHESION PROMETER | C177: GLN | D177: IMPERMEABIL.,ADITIVOS,QUIMICOS | E177: 860061089 - IDRD - PROYECCIÓN | F177: 19,00 % | G177: $ 53.346,00 | H177: 2022-01-31
A178: 141 | B178: ACRILICO 2mm. | C178: M2 | D178: MOLDURAS | F178: 0,00 % | G178: 0,00
A179: 142 | B179: ACRILICO 3mm. (Opal-Lámina de 1,20x1.80m) | C179: M2 | D179: MOLDURAS | F179: 0,00 % | G179: 0,00
A180: 104405 | B180: ACRILICO INCOLORO 4mm. - Puerta o Vent.(Sum+inst) | C180: M2 | D180: MOLDURAS | E180: 860061089 - IDRD - PROYECCIÓN | F180: 19,00 % | G180: $ 181.636,99 | H180: 2023-03-28
A181: 102338 | B181: ACRILICO LÁMINA DE 1.20x1.80 | C181: UN | D181: MOLDURAS | F181: 0,00 % | G181: 0,00
A182: 1023 | B182: ACRILTEX SEMIMATE | C182: GLN | D182: PINTURAS | E182: 860061089 - IDRD - PROYECCIÓN | F182: 19,00 % | G182: $ 94.906,00 | H182: 2023-03-28
A183: 1305 | B183: ACRISELLO BLANCO 5 KILOS | C183: KG | D183: ADITIVOS Y QUIMICOS | F183: 0,00 % | G183: 0,00
A184: 104470 | B184: ACRONAL/GRECONAL | C184: GLN | D184: FERRETERIA Y HERRAMIENTAS | F184: 0,00 % | G184: 0,00
A185: 104535 | B185: Activador PVC (Membrana reforz)** | C185: ML | D185: IMPERMEABILIZANTES | E185: 860061089 - IDRD - PROYECCIÓN | F185: 19,00 % | G185: $ 47.200,01 | H185: 2020-01-09
A186: 107101 | B186: Actualización de planos | C186: UN | D186: OTROS PREFABRICADOS | F186: 0,00 % | G186: 0,00
A187: 3041 | B187: ACUSTIFIBRA S/inst. Fglas | C187: M2 | D187: FIBRA DE VIDRIO | F187: 0,00 % | G187: 0,00
A188: 101537 | B188: Adapatdor Terminal Campana Ø3" Ducto TDP | C188: UN | D188: ACCESORIOS HIDROSANITARIOS | E188: 66665555555 - IDRD - MEDIA ARITMETICA DE COTIZACIONES | F188: 19,00 % | G188: $ 3.164,00 | H188: 2019-02-12
A189: 107594 | B189: Adaptador Hembra CPVC-SCH-80 Ø"2"" | C189: UN | D189: INST. HIDRAUL/SANIT. Y LAMINAS | F189: 0,00 % | G189: 0,00
A190: 107751 | B190: Adaptador Hembra CPVC-SCH-80 Ø"21/2" | C190: UN | D190: INST. HIDRAUL/SANIT. Y LAMINAS | F190: 0,00 % | G190: 0,00
A191: 107589 | B191: Adaptador Macho CPVC-SCH-80 Ø"2"" | C191: UN | D191: INST. HIDRAUL/SANIT. Y LAMINAS | F191: 0,00 % | G191: 0,00
A192: 106313 | B192: ADAPTADOR PVC HEMBRA 1 1/4" | C192: UN | D192: ACCESORIOS HIDROSANITARIOS | E192: 66665555555 - IDRD - MEDIA ARITMETICA DE COTIZACIONES | F192: 19,00 % | G192: $ 1.429,00 | H192: 2020-01-22
A193: 3532 | B193: ADAPTADOR ALCANT NOVAFORT 4-110MM | C193: UN | D193: ACCESORIOS TUBERIA SUBTERRANEA | E193: 860061089 - IDRD - PROYECCIÓN | F193: 19,00 % | G193: $ 17.312,00 | H193: 2022-01-28
A194: 3533 | B194: ADAPTADOR ALCANT NOVAFORT 6-160MM | C194: UN | D194: ACCESORIOS TUBERIA SUBTERRANEA | E194: 860061089 - IDRD - PROYECCIÓN | F194: 19,00 % | G194: $ 45.583,00 | H194: 2022-01-28
A195: 3534 | B195: ADAPTADOR ALCANT NOVAFORT 8-200MM | C195: UN | D195: ACCESORIOS TUBERIA SUBTERRANEA | E195: 860061089 - IDRD - PROYECCIÓN | F195: 19,00 % | G195: $ 64.454,01 | H195: 2022-01-28
A196: 1087 | B196: ADAPTADOR CALIENTE ULTRATEMP ½" PAVCO | C196: UN | D196: ACCESORIOS HIDROSANITARIOS | E196: 860061089 - IDRD - PROYECCIÓN | F196: 19,00 % | G196: $ 18.549,01 | H196: 2022-01-27
A197: 1095 | B197: ADAPTADOR CALIENTE ULTRATEMP 3/4" PAVCO | C197: UN | D197: ACCESORIOS HIDROSANITARIOS | E197: 860061089 - IDRD - PROYECCIÓN | F197: 19,00 % | G197: $ 22.914,00 | H197: 2022-01-27
A198: 105093 | B198: Adaptador Campana ducto electrico tipo DB 2" | C198: UN | D198: TUBERIA SUBT,REJILLAS,SUMIDER. | E198: 8956232 - IDRD - MEDIA ARMONICA COTIZACIONES | F198: 19,00 % | G198: $ 2.313,00 | H198: 2019-05-07
A199: 105089 | B199: Adaptador CampanaDuctoElectricoTipoTDPØ6" | C199: UN | D199: TUBOS | E199: 860061089 - IDRD - PROYECCIÓN | F199: 19,00 % | G199: $ 24.095,00 | H199: 2023-03-28
A200: 2461 | B200: ADAPTADOR CONDUIT CONDUFLEX ½" | C200: UN | D200: TUBERIA | F200: 0,00 % | G200: 0,00
A201: 3781 | B201: ADAPTADOR CONDUIT CONDUFLEX 3/4" | C201: UN | D201: TUBERIA | F201: 0,00 % | G201: 0,00
... 12579 more rows

Sheet APU CIO (hidden)
A1: Código | B1: Descripcion | C1: Unidad | D1: Valor Unitario | E1: Materiales | F1: Equipos | G1: Mano de Obra | H1: Transporte | I1: Otros Costos
A2: 10627-1 | B2: ACOMETIDA 3 X 1/0 | C2: ML | D2: 102027.18 | E2: $ 92.907,75 | F2: $ 434,26 | G2: $ 8.685,17 | H2: $ 0,00 | I2: $ 0,00
A3: 15852 | B3: Cinta LED en perfil para exteriores IP65 por metro lineal COMETAS | C3: UN | D3: 317833.73 | E3: $ 290.475,43 | F3: $ 1.302,78 | G3: $ 26.055,52 | H3: $ 0,00 | I3: $ 0,00
A4: 10469 | B4: PATCH CORD CAT- 6 (3 FT) (1 METRO) - CEFE COMETAS apantallami.utp y clasif Lszh (Sumin+Instalac) | C4: UN | D4: 22151.19 | E4: $ 17.597,01 | F4: $ 189,69 | G4: $ 3.647,77 | H4: $ 716,72 | I4: $ 0,00
A5: 19202 | B5: Válvula Mariposa PVC Ø4" - Suministro e Instalación | C5: UN | D5: 608584.71 | E5: $ 537.422,15 | F5: $ 3.388,69 | G5: $ 67.773,87 | H5: $ 0,00 | I5: $ 0,00
A6: 18436 | B6: (BL2) -Luminaria Bolardo Exterior corto LED 10.8W | C6: UN | D6: 57072.77 | E6: $ 3.188,00 | F6: $ 2.380,91 | G6: $ 48.636,98 | H6: $ 2.866,88 | I6: $ 0,00
A7: 18149 | B7: (BRANCH 2 - CONEXIÓN DE UNIDADES INTERIORES LIQ - GAS.Cefe Cometas(Sumin+instalación) | C7: UN | D7: 206116.62 | E7: $ 194.568,45 | F7: $ 561,33 | G7: $ 10.986,84 | H7: $ 0,00 | I7: $ 0,00
A8: 18391 | B8: (CR1)-Accesorio Esquinero de 90grados+difusor | C8: UN | D8: 57072.77 | E8: $ 3.188,00 | F8: $ 2.380,91 | G8: $ 48.636,98 | H8: $ 2.866,88 | I8: $ 0,00
A9: 18400 | B9: (CR2)-Accesorio Esquinero de 90grados+difusor Lumi | C9: UN | D9: 57072.77 | E9: $ 3.188,00 | F9: $ 2.380,91 | G9: $ 48.636,98 | H9: $ 2.866,88 | I9: $ 0,00
A10: 18395 | B10: (DL1) - Luminaria tipo Downlight redondo LED 7.9W | C10: UN | D10: 51705.33 | E10: $ 3.188,00 | F10: $ 2.224,58 | G10: $ 43.425,87 | H10: $ 2.866,88 | I10: $ 0,00
A11: 18398 | B11: (DL2) - Luminaria tipo Decorativa esferica con bom | C11: UN | D11: 80455.47 | E11: $ 31.938,14 | F11: $ 2.224,58 | G11: $ 43.425,87 | H11: $ 2.866,88 | I11: $ 0,00
A12: 18388 | B12: (DL3) Luminaria tipo cilindro PCB FORTIMO12W 4000K | C12: UN | D12: 63161.33 | E12: $ 3.188,00 | F12: $ 13.680,58 | G12: $ 43.425,87 | H12: $ 2.866,88 | I12: $ 0,00
A13: 18402 | B13: (DRX150)1-Driver de ULP150 para LED150W de 6.3Amp | C13: UN | D13: 51705.33 | E13: $ 3.188,00 | F13: $ 2.224,58 | G13: $ 43.425,87 | H13: $ 2.866,88 | I13: $ 0,00
A14: 18403 | B14: (DRX240) Driver de ULP150 para LED 240W de 6.3Amp | C14: UN | D14: 51705.33 | E14: $ 3.188,00 | F14: $ 2.224,58 | G14: $ 43.425,87 | H14: $ 2.866,88 | I14: $ 0,00
A15: 18414 | B15: (EM1) - Luminaria de emergencia 142 x 142 x 39 | C15: UN | D15: 83331.72 | E15: $ 17.990,95 | F15: $ 13.836,91 | G15: $ 48.636,98 | H15: $ 2.866,88 | I15: $ 0,00
A16: 18415 | B16: (EM2)Luminaria de emergencia 170lm. 2 LED x 3W | C16: UN | D16: 71875.72 | E16: $ 17.990,95 | F16: $ 2.380,91 | G16: $ 48.636,98 | H16: $ 2.866,88 | I16: $ 0,00
A17: 18417 | B17: (EM3)-Luminaria LED 3W60 min,Ik04,IP42 120lm | C17: UN | D17: 101255.52 | E17: $ 25.901,00 | F17: $ 3.006,24 | G17: $ 69.481,40 | H17: $ 2.866,88 | I17: $ 0,00
A18: 18419 | B18: (EM4)-Luminaria 328x125x57- Flujo Luminoso 200lm | C18: UN | D18: 68687.72 | E18: $ 14.802,95 | F18: $ 2.380,91 | G18: $ 48.636,98 | H18: $ 2.866,88 | I18: $ 0,00
A19: 18420 | B19: (EM5)-Luminaria 370 x243x191-Flujo Luminoso 2070lm | C19: UN | D19: 80801.17 | E19: $ 15.460,40 | F19: $ 13.836,91 | G19: $ 48.636,98 | H19: $ 2.866,88 | I19: $ 0,00
A20: 18422 | B20: (EM6)-Luminaria emergencia cilindrica 150lm | C20: UN | D20: 57072.77 | E20: $ 3.188,00 | F20: $ 2.380,91 | G20: $ 48.636,98 | H20: $ 2.866,88 | I20: $ 0,00
A21: 18197 | B21: (LED 1) - LuminariaNW2PCB-1R x 2200lm Long.1136mm | C21: UN | D21: 98412.29 | E21: $ 23.908,00 | F21: $ 14.315,26 | G21: $ 57.322,15 | H21: $ 2.866,88 | I21: $ 0,00
A22: 18205 | B22: (LED 2)LuminariaNW3PCB-1Rx2200lmLongitud 17008mm | C22: UN | D22: 84168.89 | E22: $ 9.882,40 | F22: $ 14.097,46 | G22: $ 57.322,15 | H22: $ 2.866,88 | I22: $ 0,00
A23: 18239 | B23: (LED10)-LuminariaDUNA LED 1x1.2 35W112lm/w 3900lm | C23: UN | D23: 58399.73 | E23: $ 9.882,40 | F23: $ 2.224,58 | G23: $ 43.425,87 | H23: $ 2.866,88 | I23: $ 0,00
A24: 18243 | B24: (LED11) - Cinta LED LINEARlight Flex Shrort pitch | C24: UN | D24: 77297.11 | E24: $ 17.333,50 | F24: $ 2.641,46 | G24: $ 57.322,15 | H24: $ 0,00 | I24: $ 0,00
A25: 18252 | B25: (LED12) Luminaria 158W4000K NW10PCB-1Rx2200lm-5650 | C25: UN | D25: 90697.74 | E25: $ 18.210,10 | F25: $ 3.006,24 | G25: $ 69.481,40 | H25: $ 0,00 | I25: $ 0,00
A26: 18256 | B26: (LED13)-LuminariaNW3PCB1Rx2200lm1.70m-42,9W-4000K | C26: UN | D26: 97458.49 | E26: $ 17.771,80 | F26: $ 2.380,91 | G26: $ 48.636,98 | H26: $ 28.668,80 | I26: $ 0,00
A27: 18262 | B27: (LED14) Luminaria15.8W 4000K NW1PCB -1R x 2200lm | C27: UN | D27: 81013.65 | E27: $ 6.694,40 | F27: $ 2.224,58 | G27: $ 43.425,87 | H27: $ 28.668,80 | I27: $ 0,00
A28: 18265 | B28: (LED15)Luminaria142,2W 4000K NW 9PCB -1R x 2200lm | C28: UN | D28: 89569.09 | E28: $ 9.882,40 | F28: $ 2.380,91 | G28: $ 48.636,98 | H28: $ 28.668,80 | I28: $ 0,00
A29: 18269 | B29: (LED16)110,6W 4000K NW 7PCB -1R x 2200lm3960mm | C29: UN | D29: 89569.09 | E29: $ 9.882,40 | F29: $ 2.380,91 | G29: $ 48.636,98 | H29: $ 28.668,80 | I29: $ 0,00
A30: 18277 | B30: (LED17)Luminaria 31,6W 4000K NW 2PCB -1R x 2200lm | C30: UN | D30: 86381.09 | E30: $ 6.694,40 | F30: $ 2.380,91 | G30: $ 48.636,98 | H30: $ 28.668,80 | I30: $ 0,00
A31: 18380 | B31: (LED18)-Luminaria63.2W 4000K NW 4PCB -1R x 2200lm | C31: UN | D31: 93147.38 | E31: $ 9.882,40 | F31: $ 2.485,13 | G31: $ 52.111,05 | H31: $ 28.668,80 | I31: $ 0,00
A32: 18381 | B32: (LED20) - LuminariaNW 7PCB-1Rx2200lm 3.96m-98.4W | C32: UN | D32: 80616.84 | E32: $ 8.129,20 | F32: $ 3.006,24 | G32: $ 69.481,40 | H32: $ 0,00 | I32: $ 0,00
A33: 18437 | B33: (LED21)Luminaria tipo lineal Wall washeLED15x56 24 | C33: UN | D33: 68528.77 | E33: $ 3.188,00 | F33: $ 13.836,91 | G33: $ 48.636,98 | H33: $ 2.866,88 | I33: $ 0,00
A34: 18438 | B34: (LED22) - Cinta LED Linearlight Value Flex protect | C34: UN | D34: 41837.8 | E34: $ 3.188,00 | F34: $ 1.042,22 | G34: $ 34.740,70 | H34: $ 2.866,88 | I34: $ 0,00
A35: 18439 | B35: (LED23) Cinta LED Linearlight Flex protect Short p | C35: UN | D35: 41837.8 | E35: $ 3.188,00 | F35: $ 1.042,22 | G35: $ 34.740,70 | H35: $ 2.866,88 | I35: $ 0,00
A36: 18208 | B36: (LED3) -Luminaria 79W 4000K NW 5PCB -1R x 2200lm | C36: UN | D36: 84168.89 | E36: $ 9.882,40 | F36: $ 14.097,46 | G36: $ 57.322,15 | H36: $ 2.866,88 | I36: $ 0,00
A37: 18211 | B37: (LED4)-Luminaria 126.4W 4000K NW 8PCB -1R x 2200lm | C37: UN | D37: 84808.41 | E37: $ 13.388,80 | F37: $ 14.097,46 | G37: $ 57.322,15 | H37: $ 0,00 | I37: $ 0,00
A38: 18219 | B38: (LED5)-Luminaria15.8W 4000k 1PCB-1R x 2200lm -595m | C38: UN | D38: 60152.93 | E38: $ 11.635,60 | F38: $ 2.224,58 | G38: $ 43.425,87 | H38: $ 2.866,88 | I38: $ 0,00
A39: 18222 | B39: (LED6)31,6W 4000k 2PCB-1R x 2200lm Longitud1161mm | C39: UN | D39: 78123.23 | E39: $ 29.605,90 | F39: $ 2.224,58 | G39: $ 43.425,87 | H39: $ 2.866,88 | I39: $ 0,00
A40: 18225 | B40: (LED7)Luminaria47.4W-4000k 3PCB-1R x 2200lm-1727mm | C40: UN | D40: 78123.23 | E40: $ 29.605,90 | F40: $ 2.224,58 | G40: $ 43.425,87 | H40: $ 2.866,88 | I40: $ 0,00
A41: 18226 | B41: (LED8) Luminaria 63.2W-4000k 4PCB-1Rx2200lm-2293mm | C41: UN | D41: 78123.23 | E41: $ 29.605,90 | F41: $ 2.224,58 | G41: $ 43.425,87 | H41: $ 2.866,88 | I41: $ 0,00
A42: 18234 | B42: (LED9)Luminaria79W- 4000k 5PCB-1R x 2200lm-2859mm | C42: UN | D42: 78123.23 | E42: $ 29.605,90 | F42: $ 2.224,58 | G42: $ 43.425,87 | H42: $ 2.866,88 | I42: $ 0,00
A43: 18407 | B43: (PR1) - Luminaria LED Optica (5147) Extensiva 310W | C43: UN | D43: 83989.17 | E43: $ 18.648,40 | F43: $ 13.836,91 | G43: $ 48.636,98 | H43: $ 2.866,88 | I43: $ 0,00
A44: 18411 | B44: (PR2) - Luminaria LED Optica(5186)Asimetrica 547W | C44: UN | D44: 159133.29 | E44: $ 18.648,40 | F44: $ 16.025,57 | G44: $ 121.592,44 | H44: $ 2.866,88 | I44: $ 0,00
A45: 18412 | B45: (PR3) - Luminaria LED Optica (2259) Simetrica 322W | C45: UN | D45: 83989.17 | E45: $ 18.648,40 | F45: $ 13.836,91 | G45: $ 48.636,98 | H45: $ 2.866,88 | I45: $ 0,00
A46: 18423 | B46: (PU1)-Luminaria urbana ExteriorLED54W-24LEDS-5370 | C46: UN | D46: 86047.65 | E46: $ 3.188,00 | F46: $ 14.347,17 | G46: $ 65.645,60 | H46: $ 2.866,88 | I46: $ 0,00
A47: 18434 | B47: (PU2)-Luminaria urbana ExteriorLED54W-24LEDS5221lm | C47: UN | D47: 86047.65 | E47: $ 3.188,00 | F47: $ 14.347,17 | G47: $ 65.645,60 | H47: $ 2.866,88 | I47: $ 0,00
A48: 18435 | B48: (PU3)-Luminaria urbana ExteriorLED54W-24LEDS5453lm | C48: UN | D48: 86047.65 | E48: $ 3.188,00 | F48: $ 14.347,17 | G48: $ 65.645,60 | H48: $ 2.866,88 | I48: $ 0,00
A49: 10264 | B49: .Acero Estruct. ASTM A-36(Grad-50)Sumapaz** | C49: KG | D49: 13830.09 | E49: $ 3.597,34 | F49: $ 1.340,16 | G49: $ 7.955,45 | H49: $ 0,00 | I49: $ 937,14
A50: 11989 | B50: .Acero Estruct. ASTM A-572 Estruct.Metal.Muro Esca | C50: KG | D50: 17413.45 | E50: $ 13.901,47 | F50: $ 932,27 | G50: $ 1.450,00 | H50: $ 0,00 | I50: $ 1.129,71
A51: 12644 | B51: .Acero Estruct.Perfil "C"Metal.Cubierta* | C51: KG | D51: 13081.54 | E51: $ 6.189,24 | F51: $ 3.460,19 | G51: $ 2.822,62 | H51: $ 0,00 | I51: $ 609,49
A52: 19241 | B52: |ALIMENTADOR TGA DE TRANS AUT PPAL TAUTGA CDRC Cometas | C52: UN | D52: 269818.23 | E52: $ 230.597,28 | F52: $ 1.503,38 | G52: $ 28.550,22 | H52: $ 9.167,35 | I52: $ 0,00
A53: 19240 | B53: |ALIMENTADOR TRANS AUT PPAL DE TRPPAL CDRC Cometas | C53: UN | D53: 269818.23 | E53: $ 230.597,28 | F53: $ 1.503,38 | G53: $ 28.550,22 | H53: $ 9.167,35 | I53: $ 0,00
A54: 18933 | B54: 2 No. 6 CUxHFFR-LSxAWG fases + 1 No. 8 CUxDesxAWG | C54: ML | D54: 42687.42 | E54: $ 20.862,45 | F54: $ 1.198,55 | G54: $ 15.980,72 | H54: $ 4.645,70 | I54: $ 0,00
A55: 18905 | B55: 2X3 NO. 350 CUXHFFR-LSXAWG FASES + 2 NO. 350 CUXHF | C55: ML | D55: 561191.78 | E55: $ 512.709,40 | F55: $ 2.410,14 | G55: $ 32.135,15 | H55: $ 13.937,09 | I55: $ 0,00
A56: 18918 | B56: 2X3 NO. 4/0 CUXHFFR-LSXAWG FASES + 2 NO. 4/0 CUXHF | C56: ML | D56: 33951.37 | E56: $ 7.350,00 | F56: $ 1.207,67 | G56: $ 16.102,31 | H56: $ 9.291,39 | I56: $ 0,00
A57: 18921 | B57: 3 NO. 1/0 CUXHFFR-LSXAWG FASES + 1 NO. 1/0 CUXHFFR | C57: ML | D57: 38706.43 | E57: $ 16.750,75 | F57: $ 1.207,67 | G57: $ 16.102,31 | H57: $ 4.645,70 | I57: $ 0,00
A58: 18932 | B58: 3 NO. 12 CUXHFFR-LSXAWG FASES + 1 NO. 12 CUXHFFR-L | C58: ML | D58: 27005.94 | E58: $ 12.090,02 | F58: $ 716,53 | G58: $ 9.553,69 | H58: $ 4.645,70 | I58: $ 0,00
A59: 18924 | B59: 3 NO. 2 CUXHFFR-LSXAWG FASES + 1 NO. 2 CUXHFFR-LSX | C59: ML | D59: 83743.86 | E59: $ 61.788,18 | F59: $ 1.207,67 | G59: $ 16.102,31 | H59: $ 4.645,70 | I59: $ 0,00
A60: 18912 | B60: 3 NO. 350 CUXHFFR-LSXAWG FASES + 1 NO. 350 CUXHFFR | C60: ML | D60: 283131.07 | E60: $ 256.529,70 | F60: $ 1.207,67 | G60: $ 16.102,31 | H60: $ 9.291,39 | I60: $ 0,00
A61: 18928 | B61: 3 NO. 4 CUXHFFR-LSXAWG FASES + 1 NO. 4 CUXHFFR-LSX | C61: ML | D61: 64310.06 | E61: $ 42.354,38 | F61: $ 1.207,67 | G61: $ 16.102,31 | H61: $ 4.645,70 | I61: $ 0,00
A62: 18929 | B62: 3 NO. 6 CU AWG FASES + 1 NO. 8 CU AWG | C62: ML | D62: 54438.48 | E62: $ 32.482,80 | F62: $ 1.207,67 | G62: $ 16.102,31 | H62: $ 4.645,70 | I62: $ 0,00
A63: 18930 | B63: 3 NO. 8 CUXHFFR-LSXAWG FASES + 1 NO. 8 CUXHFFR-LSX | C63: ML | D63: 53466.18 | E63: $ 31.510,50 | F63: $ 1.207,67 | G63: $ 16.102,31 | H63: $ 4.645,70 | I63: $ 0,00
A64: 18896 | B64: 4X3 NO. 400 CUXTHWNXAWG FASES + 4 NO. 400 CUXTHWN | C64: ML | D64: 68273.78 | E64: $ 10.500,00 | F64: $ 2.410,14 | G64: $ 32.135,15 | H64: $ 23.228,49 | I64: $ 0,00
A65: 14772 | B65: Abdominales adultos mayores (SUM + INST) | C65: UN | D65: 2270028.72 | E65: $ 2.184.725,21 | F65: $ 4.901,41 | G65: $ 68.481,05 | H65: $ 11.921,07 | I65: $ 0,00
A66: 14360 | B66: ABDOMINALES ADULTOS/MAYORES-DISEÑ-IDRD(sumin) | C66: UN | D66: 2011005 | E66: $ 2.011.005,00 | F66: $ 0,00 | G66: $ 0,00 | H66: $ 0,00 | I66: $ 0,00
A67: 12789 | B67: Abrazadera 1" ** | C67: UN | D67: 5611.47 | E67: $ 474,30 | F67: $ 244,63 | G67: $ 4.892,54 | H67: $ 0,00 | I67: $ 0,00
A68: 12787 | B68: Abrazadera 1/2" A 3/4"(Suministro+Instalación) | C68: UN | D68: 7381.48 | E68: $ 2.441,89 | F68: $ 235,22 | G68: $ 4.704,37 | H68: $ 0,00 | I68: $ 0,00
A69: 12791 | B69: Abrazadera 11/2" ** | C69: UN | D69: 6449.19 | E69: $ 1.509,60 | F69: $ 235,22 | G69: $ 4.704,37 | H69: $ 0,00 | I69: $ 0,00
A70: 12790 | B70: Abrazadera 11/4" ** | C70: UN | D70: 6107.19 | E70: $ 970,02 | F70: $ 244,63 | G70: $ 4.892,54 | H70: $ 0,00 | I70: $ 0,00
A71: 15641 | B71: Abrazadera 2" industrial (Mantenimiento) | C71: UN | D71: 12238.81 | E71: $ 4.900,00 | F71: $ 2.446,27 | G71: $ 4.892,54 | H71: $ 0,00 | I71: $ 0,00
A72: 20639 | B72: ABRAZADERA 2" INDUSTRIAL (MANTENIMIENTO) | C72: UN | D72: 13367.86 | E72: $ 4.900,00 | F72: $ 2.822,62 | G72: $ 5.645,24 | H72: $ 0,00 | I72: $ 0,00
A73: 15640 | B73: Abrazadera 3" industrial | C73: UN | D73: 7338.81 | E73: $ 0,00 | F73: $ 2.446,27 | G73: $ 4.892,54 | H73: $ 0,00 | I73: $ 0,00
A74: 13104 | B74: Abrazadera 3"(Sum+Inst). ** | C74: UN | D74: 5222.15 | E74: $ 150,98 | F74: $ 1.533,48 | G74: $ 3.537,69 | H74: $ 0,00 | I74: $ 0,00
A75: 15642 | B75: Abrazadera 4" industrial | C75: UN | D75: 12341.81 | E75: $ 5.003,00 | F75: $ 2.446,27 | G75: $ 4.892,54 | H75: $ 0,00 | I75: $ 0,00
A76: 15804 | B76: ABRAZADERA 5/8" EN ACERO INOXIDABLE (Sumins+Inst) | C76: UN | D76: 4964.27 | E76: $ 3.146,50 | F76: $ 86,56 | G76: $ 1.731,21 | H76: $ 0,00 | I76: $ 0,00
A77: 10742 | B77: Abrazadera Bajante ALL 6" con pernos 1/2" ** | C77: UN | D77: 70175.08 | E77: $ 29.233,34 | F77: $ 5.967,01 | G77: $ 34.974,73 | H77: $ 0,00 | I77: $ 0,00
A78: 10741 | B78: Abrazadera Bajante ALL 6" con pernos 3/8" ** | C78: UN | D78: 52286.8 | E78: $ 19.244,10 | F78: $ 3.464,03 | G78: $ 29.578,67 | H78: $ 0,00 | I78: $ 0,00
A79: 17316 | B79: ABRAZADERA PERA AISLAMIENTO DIELÉC. 1 1/2" | C79: UN | D79: 7301.49 | E79: $ 2.516,00 | F79: $ 93,83 | G79: $ 4.691,66 | H79: $ 0,00 | I79: $ 0,00
A80: 17315 | B80: ABRAZADERA PERA AISLAMIENTO DIELÉC. 1 1/4" | C80: UN | D80: 7089.6 | E80: $ 2.516,00 | F80: $ 89,68 | G80: $ 4.483,92 | H80: $ 0,00 | I80: $ 0,00
A81: 17314 | B81: ABRAZADERA PERA AISLAMIENTO DIELÉC. 1" | C81: UN | D81: 6895.35 | E81: $ 2.516,00 | F81: $ 85,87 | G81: $ 4.293,48 | H81: $ 0,00 | I81: $ 0,00
A82: 17312 | B82: ABRAZADERA PERA AISLAMIENTO DIELÉC. 1/2" | C82: UN | D82: 6754.08 | E82: $ 2.516,00 | F82: $ 83,10 | G82: $ 4.154,98 | H82: $ 0,00 | I82: $ 0,00
A83: 17317 | B83: ABRAZADERA PERA AISLAMIENTO DIELÉC. 2" | C83: UN | D83: 7813.59 | E83: $ 2.516,00 | F83: $ 103,87 | G83: $ 5.193,72 | H83: $ 0,00 | I83: $ 0,00
A84: 17318 | B84: ABRAZADERA PERA AISLAMIENTO DIELÉC. 3" | C84: UN | D84: 10691.96 | E84: $ 2.516,00 | F84: $ 160,31 | G84: $ 8.015,65 | H84: $ 0,00 | I84: $ 0,00
A85: 17313 | B85: ABRAZADERA PERA AISLAMIENTO DIELÉC. 3/4" | C85: UN | D85: 6877.69 | E85: $ 2.516,00 | F85: $ 85,52 | G85: $ 4.276,17 | H85: $ 0,00 | I85: $ 0,00
A86: 16306 | B86: ABRAZADERA TIPO PERA O TRAPECIO 3" ACERO NEGRO | C86: UN | D86: 6467.7 | E86: $ 3.741,00 | F86: $ 129,84 | G86: $ 2.596,86 | H86: $ 0,00 | I86: $ 0,00
A87: 16305 | B87: ABRAZADERA TIPO PERA O TRAPECIO 4" ACERO NEGRO | C87: UN | D87: 9327.7 | E87: $ 6.601,00 | F87: $ 129,84 | G87: $ 2.596,86 | H87: $ 0,00 | I87: $ 0,00
A88: 19190 | B88: ABRAZADERA TRAPECIO 2"(Inc Elem Fija) CEFE COMETAS | C88: UN | D88: 5703.82 | E88: $ 3.770,57 | F88: $ 94,12 | G88: $ 1.839,13 | H88: $ 0,00 | I88: $ 0,00
A89: 19199 | B89: ABRAZADERA TRAPECIO 3" (Inc Elem Fija)CEFE COMETAS | C89: UN | D89: 8606.7 | E89: $ 5.880,00 | F89: $ 129,84 | G89: $ 2.596,86 | H89: $ 0,00 | I89: $ 0,00
A90: 19200 | B90: ABRAZADERA TRAPECIO 4" (Inc Elem Fija)CEFE COMETAS | C90: UN | D90: 11248.71 | E90: $ 8.522,01 | F90: $ 129,84 | G90: $ 2.596,86 | H90: $ 0,00 | I90: $ 0,00
A91: 19196 | B91: ABRAZADERA TRAPECIO2-1/2"(IncElemFija)CEFE COMETAS | C91: UN | D91: 6370.82 | E91: $ 4.437,57 | F91: $ 94,12 | G91: $ 1.839,13 | H91: $ 0,00 | I91: $ 0,00
A92: 16281 | B92: Abrazadera Uacero inox.de 1/4"para Ø 1"+tuerca | C92: UN | D92: 5582.29 | E92: $ 856,00 | F92: $ 225,06 | G92: $ 4.501,23 | H92: $ 0,00 | I92: $ 0,00
A93: 16282 | B93: Abrazadera Uacero inox.de 1/4"para Ø 11/2"+tuerca | C93: UN | D93: 4726.29 | E93: $ 0,00 | F93: $ 225,06 | G93: $ 4.501,23 | H93: $ 0,00 | I93: $ 0,00
A94: 16283 | B94: Abrazadera Uacero inox.de 1/4"para Ø 11/4"+tuerca | C94: UN | D94: 4726.29 | E94: $ 0,00 | F94: $ 225,06 | G94: $ 4.501,23 | H94: $ 0,00 | I94: $ 0,00
A95: 16284 | B95: Abrazadera Uacero inox.de 5/16"para Ø 2"+tuerca | C95: UN | D95: 4726.29 | E95: $ 0,00 | F95: $ 225,06 | G95: $ 4.501,23 | H95: $ 0,00 | I95: $ 0,00
A96: 16285 | B96: Abrazadera Uacero inox.de 5/16"para Ø 3"+tuerca | C96: UN | D96: 4726.29 | E96: $ 0,00 | F96: $ 225,06 | G96: $ 4.501,23 | H96: $ 0,00 | I96: $ 0,00
A97: 16394 | B97: Abrazadera Uacero inox.de 5/16"para Ø 6"+tuerca | C97: UN | D97: 14531.3 | E97: $ 9.805,01 | F97: $ 225,06 | G97: $ 4.501,23 | H97: $ 0,00 | I97: $ 0,00
A98: 19021 | B98: AbrazaderaPera/Trapecio 6"CRDC - CometasSUM+INST | C98: UN | D98: 18433.77 | E98: $ 14.786,00 | F98: $ 173,70 | G98: $ 3.474,07 | H98: $ 0,00 | I98: $ 0,00
A99: 17066 | B99: ABRAZADERAS TIPO PERA 1 1/2" | C99: UN | D99: 6310.72 | E99: $ 4.093,00 | F99: $ 105,61 | G99: $ 2.112,11 | H99: $ 0,00 | I99: $ 0,00
A100: 17065 | B100: ABRAZADERAS TIPO PERA 1 1/4" | C100: UN | D100: 5977.38 | E100: $ 3.876,00 | F100: $ 41,20 | G100: $ 2.060,18 | H100: $ 0,00 | I100: $ 0,00
A101: 17064 | B101: ABRAZADERAS TIPO PERA 1" | C101: UN | D101: 6024.09 | E101: $ 4.011,00 | F101: $ 39,47 | G101: $ 1.973,62 | H101: $ 0,00 | I101: $ 0,00
A102: 17059 | B102: ABRAZADERAS TIPO PERA 1/2" | C102: UN | D102: 5731.46 | E102: $ 3.789,00 | F102: $ 38,09 | G102: $ 1.904,37 | H102: $ 0,00 | I102: $ 0,00
A103: 17076 | B103: ABRAZADERAS TIPO PERA 10" | C103: UN | D103: 23329.85 | E103: $ 2.516,00 | F103: $ 991,14 | G103: $ 19.822,71 | H103: $ 0,00 | I103: $ 0,00
A104: 17071 | B104: ABRAZADERAS TIPO PERA 2 1/2" | C104: UN | D104: 7779.32 | E104: $ 4.795,00 | F104: $ 58,52 | G104: $ 2.925,80 | H104: $ 0,00 | I104: $ 0,00
A105: 17070 | B105: ABRAZADERAS TIPO PERA 2" | C105: UN | D105: 6388.31 | E105: $ 4.128,00 | F105: $ 44,32 | G105: $ 2.215,99 | H105: $ 0,00 | I105: $ 0,00
A106: 17072 | B106: ABRAZADERAS TIPO PERA 3" | C106: UN | D106: 9453.22 | E106: $ 6.257,00 | F106: $ 62,67 | G106: $ 3.133,55 | H106: $ 0,00 | I106: $ 0,00
A107: 17063 | B107: ABRAZADERAS TIPO PERA 3/4" | C107: UN | D107: 5825.43 | E107: $ 3.830,00 | F107: $ 39,13 | G107: $ 1.956,30 | H107: $ 0,00 | I107: $ 0,00
A108: 17073 | B108: ABRAZADERAS TIPO PERA 4" | C108: UN | D108: 12790 | E108: $ 9.117,00 | F108: $ 72,02 | G108: $ 3.600,98 | H108: $ 0,00 | I108: $ 0,00
A109: 17074 | B109: ABRAZADERAS TIPO PERA 6" | C109: UN | D109: 17776.51 | E109: $ 10.819,00 | F109: $ 136,42 | G109: $ 6.821,09 | H109: $ 0,00 | I109: $ 0,00
A110: 17075 | B110: ABRAZADERAS TIPO PERA 8" | C110: UN | D110: 15707.02 | E110: $ 2.516,00 | F110: $ 258,65 | G110: $ 12.932,37 | H110: $ 0,00 | I110: $ 0,00
A111: 11088 | B111: Abujardado manual "abuzard" superficie m2 ** | C111: M2 | D111: 24358.99 | E111: $ 0,00 | F111: $ 1.115,02 | G111: $ 20.774,90 | H111: $ 2.469,07 | I111: $ 0,00
A112: 11378 | B112: Abujardado manual "abuzard" superficie ml ** | C112: ML | D112: 22699.87 | E112: $ 2,11 | F112: $ 227,36 | G112: $ 22.351,69 | H112: $ 118,71 | I112: $ 0,00
A113: 11379 | B113: Abujardado mecanico "abuzard" superficie m2 ** | C113: M2 | D113: 20308.47 | E113: $ 4,21 | F113: $ 3.063,32 | G113: $ 17.003,53 | H113: $ 237,41 | I113: $ 0,00
A114: 11380 | B114: Abujardado mecanico "abuzard" superficie ml ** | C114: ML | D114: 24472.7 | E114: $ 2,11 | F114: $ 2.000,19 | G114: $ 22.351,69 | H114: $ 118,71 | I114: $ 0,00
A115: 14554 | B115: Acabado en meson+salpic en granito fundidoColiseo | C115: M2 | D115: 128297.41 | E115: $ 79.378,84 | F115: $ 5.190,31 | G115: $ 41.047,73 | H115: $ 2.680,53 | I115: $ 0,00
A116: 18550 | B116: Acabado esmaltado sobre placa de concreto estructu | C116: M2 | D116: 25994.7 | E116: $ 10.615,75 | F116: $ 4.709,69 | G116: $ 10.669,27 | H116: $ 0,00 | I116: $ 0,00
A117: 18342 | B117: Acanto /Acanthus Mollis en jardineras | C117: M2 | D117: 36608.67 | E117: $ 3.465,79 | F117: $ 1.247,62 | G117: $ 24.952,48 | H117: $ 6.942,78 | I117: $ 0,00
A118: 18315 | B118: Acanto Planta Ornamental Sobre Cubierta Verde | C118: M2 | D118: 138945.11 | E118: $ 90.851,74 | F118: $ 2.393,65 | G118: $ 43.013,00 | H118: $ 2.686,73 | I118: $ 0,00
A119: 18259 | B119: Acanto Planta Ornamental Talud exterior | C119: M2 | D119: 3409.01 | E119: $ 1.107,26 | F119: $ 72,87 | G119: $ 1.457,46 | H119: $ 771,42 | I119: $ 0,00
A120: 10047 | B120: Acces bandeja tipo escalera(codo-reducc-T horiz)** | C120: UN | D120: 186488.47 | E120: $ 170.659,91 | F120: $ 1.306,95 | G120: $ 14.521,61 | H120: $ 0,00 | I120: $ 0,00
A121: 19236 | B121: Acces Point Inalambrico POE (Suministro+Instalación) | C121: UN | D121: 2399219.47 | E121: $ 2.326.264,00 | F121: $ 3.474,07 | G121: $ 69.481,40 | H121: $ 0,00 | I121: $ 0,00
A122: 10508 | B122: Acceso Parq. Zon.Malla eslab. cal 10 IDRD h=2.5 ** | C122: UN | D122: 2452126.03 | E122: $ 1.539.538,43 | F122: $ 82.338,94 | G122: $ 492.781,75 | H122: $ 77.464,47 | I122: $ 260.002,43
A123: 10607 | B123: Acceso Zonal.Malla electrosol. h=2.0 L=6.16** | C123: UN | D123: 6274368.77 | E123: $ 4.458.094,62 | F123: $ 119.973,94 | G123: $ 814.218,42 | H123: $ 77.464,47 | I123: $ 804.617,31
A124: 16179 | B124: Accesorio polipropileno1 "Fusión (Sum+Inst)PN-16 | C124: UN | D124: 14361.86 | E124: $ 9.817,35 | F124: $ 216,41 | G124: $ 4.328,10 | H124: $ 0,00 | I124: $ 0,00
A125: 19284 | B125: ACCESORIO ACERO GALV SCH-40 - Ø1" CDRC Cometas | C125: UN | D125: 6437.26 | E125: $ 2.801,66 | F125: $ 173,12 | G125: $ 3.462,48 | H125: $ 0,00 | I125: $ 0,00
A126: 17304 | B126: ACCESORIO ACERO GALVANIZADO 1 1/2" | C126: UN | D126: 11853.34 | E126: $ 7.738,87 | F126: $ 80,68 | G126: $ 4.033,79 | H126: $ 0,00 | I126: $ 0,00
A127: 17302 | B127: ACCESORIO ACERO GALVANIZADO 1 1/4" | C127: UN | D127: 7374.16 | E127: $ 3.948,38 | F127: $ 67,17 | G127: $ 3.358,61 | H127: $ 0,00 | I127: $ 0,00
A128: 17300 | B128: ACCESORIO ACERO GALVANIZADO 1" | C128: UN | D128: 5488.55 | E128: $ 2.751,46 | F128: $ 53,67 | G128: $ 2.683,42 | H128: $ 0,00 | I128: $ 0,00
A129: 17295 | B129: ACCESORIO ACERO GALVANIZADO 1/2" | C129: UN | D129: 2901.29 | E129: $ 1.523,91 | F129: $ 27,01 | G129: $ 1.350,37 | H129: $ 0,00 | I129: $ 0,00
A130: 17306 | B130: ACCESORIO ACERO GALVANIZADO 2" | C130: UN | D130: 10646.22 | E130: $ 5.136,72 | F130: $ 108,03 | G130: $ 5.401,47 | H130: $ 0,00 | I130: $ 0,00
A131: 17308 | B131: ACCESORIO ACERO GALVANIZADO 3" | C131: UN | D131: 22738.46 | E131: $ 14.385,91 | F131: $ 163,78 | G131: $ 8.188,77 | H131: $ 0,00 | I131: $ 0,00
A132: 17297 | B132: ACCESORIO ACERO GALVANIZADO 3/4" | C132: UN | D132: 3616.58 | E132: $ 1.568,18 | F132: $ 40,16 | G132: $ 2.008,24 | H132: $ 0,00 | I132: $ 0,00
A133: 17861 | B133: ACCESORIO ACERO INOXIDABLE ROSCAR 1 1/2" | C133: UN | D133: 12257.77 | E133: $ 6.495,33 | F133: $ 274,40 | G133: $ 5.488,04 | H133: $ 0,00 | I133: $ 0,00
A134: 17094 | B134: ACCESORIO ACERO INOXIDABLE ROSCAR 2" | C134: UN | D134: 15055.63 | E134: $ 9.293,19 | F134: $ 274,40 | G134: $ 5.488,04 | H134: $ 0,00 | I134: $ 0,00
A135: 17864 | B135: ACCESORIO ACERO INOXIDABLE ROSCAR 3" | C135: UN | D135: 71333.98 | E135: $ 62.928,46 | F135: $ 164,81 | G135: $ 8.240,71 | H135: $ 0,00 | I135: $ 0,00
A136: 17099 | B136: ACCESORIO ACERO INOXIDABLE ROSCAR 4" | C136: UN | D136: 107705.66 | E136: $ 104.070,06 | F136: $ 173,12 | G136: $ 3.462,48 | H136: $ 0,00 | I136: $ 0,00
A137: 16186 | B137: Accesorio de polipropileno 1/2" Fusión (Sum+Ins) | C137: UN | D137: 11322.75 | E137: $ 6.778,24 | F137: $ 216,41 | G137: $ 4.328,10 | H137: $ 0,00 | I137: $ 0,00
A138: 16322 | B138: ACCESORIO DUCTIL RANURADO 1 1/2" - (sum+inst) | C138: UN | D138: 15724.32 | E138: $ 7.544,20 | F138: $ 389,53 | G138: $ 7.790,59 | H138: $ 0,00 | I138: $ 0,00
A139: 16326 | B139: ACCESORIO DUCTIL RANURADO 2 ½" - (sum+inst) | C139: UN | D139: 26986.42 | E139: $ 16.079,60 | F139: $ 519,37 | G139: $ 10.387,45 | H139: $ 0,00 | I139: $ 0,00
A140: 16324 | B140: ACCESORIO DUCTIL RANURADO 2" - (sum+inst) | C140: UN | D140: 20693.62 | E140: $ 11.604,60 | F140: $ 432,81 | G140: $ 8.656,21 | H140: $ 0,00 | I140: $ 0,00
A141: 16339 | B141: ACCESORIO DUCTIL RANURADO 3" - (sum+inst) | C141: UN | D141: 36991.69 | E141: $ 20.822,00 | F141: $ 769,99 | G141: $ 15.399,70 | H141: $ 0,00 | I141: $ 0,00
A142: 16327 | B142: ACCESORIO DUCTIL RANURADO 4" - (sum+inst) | C142: UN | D142: 42331.32 | E142: $ 30.515,60 | F142: $ 562,65 | G142: $ 11.253,07 | H142: $ 0,00 | I142: $ 0,00
A143: 16330 | B143: ACCESORIO DUCTIL RANURADO 6" - (sum+inst) | C143: UN | D143: 16169.69 | E143: $ 0,00 | F143: $ 769,99 | G143: $ 15.399,70 | H143: $ 0,00 | I143: $ 0,00
A144: 17201 | B144: ACCESORIO DUCTIL RANURADO 8" - (sum+inst) | C144: UN | D144: 30385.39 | E144: $ 1.918,21 | F144: $ 558,18 | G144: $ 27.909,00 | H144: $ 0,00 | I144: $ 0,00
A145: 16986 | B145: ACCESORIO HIERRO FUNDIDO 2" | C145: UN | D145: 4856.13 | E145: $ 0,00 | F145: $ 95,22 | G145: $ 4.760,91 | H145: $ 0,00 | I145: $ 0,00
A146: 17009 | B146: ACCESORIO HIERRO FUNDIDO 3" | C146: UN | D146: 7204.73 | E146: $ 0,00 | F146: $ 141,27 | G146: $ 7.063,46 | H146: $ 0,00 | I146: $ 0,00
A147: 17018 | B147: ACCESORIO HIERRO FUNDIDO 4" | C147: UN | D147: 9694.61 | E147: $ 0,00 | F147: $ 190,09 | G147: $ 9.504,52 | H147: $ 0,00 | I147: $ 0,00
A148: 18650 | B148: ACCESORIO POLIETILENO | C148: UN | D148: 17924.15 | E148: $ 5.485,92 | F148: $ 592,30 | G148: $ 11.845,93 | H148: $ 0,00 | I148: $ 0,00
A149: 16379 | B149: Accesorio polipropileno 2"Fusión(Sum+Inst)PN-16 | C149: UN | D149: 34180.3 | E149: $ 28.726,89 | F149: $ 259,69 | G149: $ 5.193,72 | H149: $ 0,00 | I149: $ 0,00
A150: 16181 | B150: Accesorio polipropileno 3/4"Fusión (Sum+Inst)PN-16 | C150: UN | D150: 12901 | E150: $ 8.356,49 | F150: $ 216,41 | G150: $ 4.328,10 | H150: $ 0,00 | I150: $ 0,00
A151: 16405 | B151: Accesorio polipropileno 4"Fusión(Sum+Inst)PN-16 | C151: UN | D151: 17749.34 | E151: $ 9.569,22 | F151: $ 389,53 | G151: $ 7.790,59 | H151: $ 0,00 | I151: $ 0,00
A152: 16175 | B152: Accesorio polipropileno1 1/2"Fusión(Sum+Inst)PN-16 | C152: UN | D152: 24380.53 | E152: $ 19.836,02 | F152: $ 216,41 | G152: $ 4.328,10 | H152: $ 0,00 | I152: $ 0,00
A153: 16177 | B153: Accesorio polipropileno1 1/4"Fusión(Sum+Ins)PN-16 | C153: UN | D153: 18932.6 | E153: $ 14.388,09 | F153: $ 216,41 | G153: $ 4.328,10 | H153: $ 0,00 | I153: $ 0,00
A154: 17842 | B154: ACCESORIO PVC-P 1 1/4" | C154: ML | D154: 7370.3 | E154: $ 5.851,65 | F154: $ 29,78 | G154: $ 1.488,87 | H154: $ 0,00 | I154: $ 0,00
A155: 17840 | B155: ACCESORIO PVC-P 1" | C155: UN | D155: 3584.15 | E155: $ 2.454,00 | F155: $ 22,16 | G155: $ 1.107,99 | H155: $ 0,00 | I155: $ 0,00
A156: 16893 | B156: ACCESORIO PVC-P SCH-80 2 1/2" | C156: UN | D156: 2736.65 | E156: $ 758,88 | F156: $ 38,78 | G156: $ 1.938,99 | H156: $ 0,00 | I156: $ 0,00
A157: 16880 | B157: ACCESORIO PVC-P SCH-80 2" | C157: UN | D157: 2430.71 | E157: $ 505,92 | F157: $ 37,74 | G157: $ 1.887,05 | H157: $ 0,00 | I157: $ 0,00
A158: 16896 | B158: ACCESORIO PVC-P SCH-80 3" | C158: UN | D158: 2918.85 | E158: $ 905,76 | F158: $ 39,47 | G158: $ 1.973,62 | H158: $ 0,00 | I158: $ 0,00
A159: 16899 | B159: ACCESORIO PVC-P SCH-80 4" | C159: UN | D159: 3736.88 | E159: $ 1.158,72 | F159: $ 50,55 | G159: $ 2.527,61 | H159: $ 0,00 | I159: $ 0,00
A160: 17843 | B160: ACCESORIO PVC-P SCH-80 4" | C160: UN | D160: 3736.88 | E160: $ 1.158,72 | F160: $ 50,55 | G160: $ 2.527,61 | H160: $ 0,00 | I160: $ 0,00
A161: 16902 | B161: ACCESORIO PVC-P SCH-80 6" | C161: UN | D161: 7124.68 | E161: $ 3.451,68 | F161: $ 72,02 | G161: $ 3.600,98 | H161: $ 0,00 | I161: $ 0,00
A162: 17826 | B162: ACCESORIO PVC-S 10" | C162: UN | D162: 354979.02 | E162: $ 349.787,37 | F162: $ 101,80 | G162: $ 5.089,85 | H162: $ 0,00 | I162: $ 0,00
A163: 17847 | B163: ACCESORIO PVC-S 10" | C163: UN | D163: 340965.05 | E163: $ 335.773,40 | F163: $ 101,80 | G163: $ 5.089,85 | H163: $ 0,00 | I163: $ 0,00
A164: 18774 | B164: ACCESORIO PVC-S 10" | C164: UN | D164: 208110.42 | E164: $ 189.932,39 | F164: $ 865,62 | G164: $ 17.312,41 | H164: $ 0,00 | I164: $ 0,00
A165: 17047 | B165: ACCESORIO PVC-S 8" | C165: UN | D165: 149388.14 | E165: $ 140.299,12 | F165: $ 432,81 | G165: $ 8.656,21 | H165: $ 0,00 | I165: $ 0,00
A166: 17846 | B166: ACCESORIO PVC-S 8" | C166: UN | D166: 143992.47 | E166: $ 140.407,76 | F166: $ 70,29 | G166: $ 3.514,42 | H166: $ 0,00 | I166: $ 0,00
A167: 19147 | B167: ACCESORIOS ACERO AL CARBON- Ø 6" | C167: UN | D167: 214801.49 | E167: $ 196.469,54 | F167: $ 875,69 | G167: $ 17.456,26 | H167: $ 0,00 | I167: $ 0,00
A168: 15091 | B168: ACCESORIOS ACERO AL CARBON- Ø2-1/2" | C168: UN | D168: 28949.98 | E168: $ 19.707,04 | F168: $ 442,88 | G168: $ 8.800,06 | H168: $ 0,00 | I168: $ 0,00
A169: 16387 | B169: ACCESORIOS ACERO GALVANIZADO- Ø1" | C169: UN | D169: 6298.4 | E169: $ 2.662,80 | F169: $ 173,12 | G169: $ 3.462,48 | H169: $ 0,00 | I169: $ 0,00
A170: 16384 | B170: ACCESORIOS ACERO GALVANIZADO- Ø2" | C170: UN | D170: 17731.42 | E170: $ 8.642,40 | F170: $ 432,81 | G170: $ 8.656,21 | H170: $ 0,00 | I170: $ 0,00
A171: 16191 | B171: ACCESORIOS ACERO GALVANIZADO- Ø3" | C171: UN | D171: 41405.43 | E171: $ 25.045,20 | F171: $ 779,06 | G171: $ 15.581,17 | H171: $ 0,00 | I171: $ 0,00
A172: 16184 | B172: ACCESORIOS ACERO GALVANIZADO- Ø4" | C172: UN | D172: 60226.43 | E172: $ 42.048,40 | F172: $ 865,62 | G172: $ 17.312,41 | H172: $ 0,00 | I172: $ 0,00
A173: 19161 | B173: ACCESORIOS C900 4" Codos RED INCENDIOS CEFE COMETA | C173: UN | D173: 383890.36 | E173: $ 292.743,65 | F173: $ 4.344,89 | G173: $ 86.801,83 | H173: $ 0,00 | I173: $ 0,00
A174: 12777 | B174: ACCESORIOS CPVC Ø 1"** | C174: ML | D174: 3171.57 | E174: $ 735,72 | F174: $ 115,99 | G174: $ 2.319,86 | H174: $ 0,00 | I174: $ 0,00
A175: 13107 | B175: ACCESORIOS CPVC Ø 1/2"** | C175: ML | D175: 4350.92 | E175: $ 2.533,12 | F175: $ 86,56 | G175: $ 1.731,24 | H175: $ 0,00 | I175: $ 0,00
A176: 13710 | B176: Accesorios CPVC (agua caliente) 1 1/2" ** | C176: UN | D176: 4385.61 | E176: $ 1.331,70 | F176: $ 145,42 | G176: $ 2.908,49 | H176: $ 0,00 | I176: $ 0,00
A177: 13716 | B177: Accesorios CPVC (agua caliente) 2" ** | C177: UN | D177: 82398.72 | E177: $ 78.726,75 | F177: $ 174,86 | G177: $ 3.497,11 | H177: $ 0,00 | I177: $ 0,00
A178: 14523 | B178: Accesorios CPVC (agua caliente) 3/4" (Sum+inst) | C178: UN | D178: 3404.61 | E178: $ 1.313,04 | F178: $ 88,29 | G178: $ 1.765,87 | H178: $ 237,41 | I178: $ 0,00
A179: 16492 | B179: Accesorios CPVC Ø 1 " | C179: UN | D179: 5012.36 | E179: $ 2.285,66 | F179: $ 129,84 | G179: $ 2.596,86 | H179: $ 0,00 | I179: $ 0,00
A180: 16490 | B180: Accesorios CPVC Ø 1 1/2" | C180: UN | D180: 6382.06 | E180: $ 2.746,46 | F180: $ 173,12 | G180: $ 3.462,48 | H180: $ 0,00 | I180: $ 0,00
A181: 16491 | B181: Accesorios CPVC Ø 1 1/4" | C181: UN | D181: 2857.7 | E181: $ 1.268,42 | F181: $ 31,16 | G181: $ 1.558,12 | H181: $ 0,00 | I181: $ 0,00
A182: 16494 | B182: Accesorios CPVC Ø 1/2 " | C182: UN | D182: 5960.05 | E182: $ 4.142,25 | F182: $ 86,56 | G182: $ 1.731,24 | H182: $ 0,00 | I182: $ 0,00
A183: 16487 | B183: Accesorios CPVC Ø 2 1/2" | C183: UN | D183: 6527.49 | E183: $ 2.746,46 | F183: $ 180,05 | G183: $ 3.600,98 | H183: $ 0,00 | I183: $ 0,00
A184: 16489 | B184: Accesorios CPVC Ø 2" | C184: UN | D184: 78334.32 | E184: $ 74.553,29 | F184: $ 180,05 | G184: $ 3.600,98 | H184: $ 0,00 | I184: $ 0,00
A185: 16493 | B185: Accesorios CPVC Ø 3/4 " | C185: UN | D185: 7701.67 | E185: $ 5.883,87 | F185: $ 86,56 | G185: $ 1.731,24 | H185: $ 0,00 | I185: $ 0,00
A186: 17517 | B186: ACCESORIOS DE SUJECION, GRAPAS Y UNIONES | C186: UN | D186: 17570.11 | E186: $ 173,70 | F186: $ 26,06 | G186: $ 17.370,35 | H186: $ 0,00 | I186: $ 0,00
A187: 16501 | B187: ACCESORIOS EN COBRE Ø 1 1/2 " (Sum+Inst) | C187: UN | D187: 29950.6 | E187: $ 21.770,48 | F187: $ 389,53 | G187: $ 7.790,59 | H187: $ 0,00 | I187: $ 0,00
A188: 16502 | B188: ACCESORIOS EN COBRE Ø 1 1/4 " (Sum+Inst) | C188: UN | D188: 24082.1 | E188: $ 16.810,88 | F188: $ 346,25 | G188: $ 6.924,97 | H188: $ 0,00 | I188: $ 0,00
A189: 19312 | B189: ACCESORIOS EN COBRE Ø 7/8" 90º CRDC-COMETAS | C189: UN | D189: 12005.81 | E189: $ 8.733,77 | F189: $ 155,81 | G189: $ 3.116,23 | H189: $ 0,00 | I189: $ 0,00
A190: 18807 | B190: ACCESORIOS EN COBRE Ø1 | C190: UN | D190: 18871.47 | E190: $ 11.600,25 | F190: $ 346,25 | G190: $ 6.924,97 | H190: $ 0,00 | I190: $ 0,00
A191: 16414 | B191: ACCESORIOS EN COBRE Ø1 "(REFORZ-UDS)(Sum+Inst) | C191: UN | D191: 34908.35 | E191: $ 27.637,13 | F191: $ 346,25 | G191: $ 6.924,97 | H191: $ 0,00 | I191: $ 0,00
A192: 16562 | B192: ACCESORIOS EN COBRE Ø1 "(Sum+Inst) | C192: UN | D192: 17257.61 | E192: $ 10.895,30 | F192: $ 302,97 | G192: $ 6.059,34 | H192: $ 0,00 | I192: $ 0,00
A193: 16504 | B193: ACCESORIOS EN COBRE Ø1/2 " (Sum+Inst) | C193: UN | D193: 10472.85 | E193: $ 5.928,34 | F193: $ 216,41 | G193: $ 4.328,10 | H193: $ 0,00 | I193: $ 0,00
A194: 19305 | B194: ACCESORIOS EN COBRE Ø1/4" 90º CRDC-COMETAS | C194: UN | D194: 9256.24 | E194: $ 6.529,54 | F194: $ 129,84 | G194: $ 2.596,86 | H194: $ 0,00 | I194: $ 0,00
A195: 16412 | B195: ACCESORIOS EN COBRE Ø2 "-(REFORZ-UDS) (Sum+Inst) | C195: UN | D195: 71351.75 | E195: $ 62.262,73 | F195: $ 432,81 | G195: $ 8.656,21 | H195: $ 0,00 | I195: $ 0,00
A196: 16561 | B196: ACCESORIOS EN COBRE Ø2 "(Sum+Inst) | C196: UN | D196: 58176 | E196: $ 48.178,08 | F196: $ 476,09 | G196: $ 9.521,83 | H196: $ 0,00 | I196: $ 0,00
A197: 17824 | B197: ACCESORIOS EN COBRE Ø2 1/2" | C197: UN | D197: 43271.34 | E197: $ 38.450,52 | F197: $ 94,53 | G197: $ 4.726,29 | H197: $ 0,00 | I197: $ 0,00
A198: 16410 | B198: ACCESORIOS EN COBRE Ø2 1/2"-(REFORZ.-UDS) Sum+Inst | C198: UN | D198: 67800.05 | E198: $ 55.984,33 | F198: $ 562,65 | G198: $ 11.253,07 | H198: $ 0,00 | I198: $ 0,00
A199: 16503 | B199: ACCESORIOS EN COBRE Ø3/4 " (Sum+Inst) | C199: UN | D199: 12857.12 | E199: $ 7.403,71 | F199: $ 259,69 | G199: $ 5.193,72 | H199: $ 0,00 | I199: $ 0,00
A200: 19308 | B200: ACCESORIOS EN COBRE Ø3/8" 90º CRDC-COMETAS | C200: UN | D200: 8180.64 | E200: $ 5.453,94 | F200: $ 129,84 | G200: $ 2.596,86 | H200: $ 0,00 | I200: $ 0,00
... 10391 more rows

Sheet Tarifas IDRD (hidden)
B2: ESCALAS SALARIALES PERSONAL 2022 - PROY 2023 | J2: IPC 2022 PROYECTADO | K2: TARIFAS PROYECTADAS IPC 2023
G3: RANGO DE EXPERIENCIA REQUERIDA CERTIFICADA (Años) | I3: TARIFA | J3: 0.1312 | K3: 0.0786
B4: DESCRIPCIÓN FUNCIONAL | C4: CATEGORÍA | D4: NIVEL | E4: EQUIV | F4: CÓDIGO CIO | G4: Mínima (Mayor o igual (≥)) | H4: Máxima (Menor (<)) | I4: 2022 | J4: 2023 | K4: 2024 | N4: ESPECIALISTA (I) CATEGORÍA 1 (E.G.12;E.E.10) | O4: ESPECIALISTA (II) CATEGORÍA 2 (E.G.10;E.E.7) | P4: PROFESIONAL CATEGORÍA 3 (E.G.8;E.E.5) | Q4: PROFESIONAL CATEGORÍA 4 (E.G.6;E.E.4) | R4: PROFESIONAL CATEGORÍA 5 (E.G.4;E.E.3) | S4: PROFESIONAL CATEGORÍA 6 (E.G.3;E.E.1) | T4: PROFESIONAL CATEGORÍA 6A (E.G.3;E.E.1) | U4: PROFESIONAL CATEGORÍA 7 (E.G.2) | V4: PROFESIONAL CATEGORÍA 8 (E.G.2) | W4: PROFESIONAL AUXILIAR | Y4: Seriedad De La Oferta
B5: ASESOR (E.G.12;E.E.10) | C5: 1 | D5: PERSONAL PROFESIONAL | E5: =IF(B5=$N$4,"ESPE1",IF(B5=$O$4,"ESPE2",IF(B5=$P$4,"PROF3",IF(B5=$Q$4,"PROF4",IF(B5=$R$4,"PROF5",IF(B5=$S$4,"PROF6",IF(B5=$T$4,"PROF6A",IF(B5=$U$4,"PROF7",IF(B5=$V$4,"PROF8",IF(B5=$W$4,"PROFAUX",B5)))))))))) -> ASESOR (E.G.12;E.E.10) | F5: 100054 | G5: 12 | H5: 10 | I5: 12702868.32 | J5: 14369484.32 | K5: 15498925.32 | L5: 1 | O5: Asesor Director | P5: Director | Q5: Ing. Ambiental | R5: Residente | S5: Abogado | U5: Residente 2 | V5: Ing. Calidad | W5: Ingeniero Auxiliar | Y5: Cumplimiento
B6: ESPECIALISTA (I) CATEGORÍA 1 (E.G.10;E.E.8) | C6: 2 | D6: PERSONAL PROFESIONAL | E6: ESPECIALISTA (I) CATEGORÍA 1 (E.G.10;E.E.8) | F6: 100125 | G6: 12 | H6: 10 | I6: 11935649.56 | J6: 13501606.56 | K6: 14562832.56 | L6: 1 | O6: Director de Interventoría | P6: Especialista Geotecnista | Q6: Especialista Arq. Diseñador Junior | R6: Calidad | S6: Especialista Hidrosanitario y Gas | U6: Ing. Eléctrico | W6: Auxiliar Administrativo | Y6: Buen Manejo Del Anticipo
B7: ESPECIALISTA (II) CATEGORÍA 2 (E.G.8;E.E.5) | C7: 3 | D7: PERSONAL PROFESIONAL | E7: ESPECIALISTA (II) CATEGORÍA 2 (E.G.8;E.E.5) | F7: 100142 | G7: 10 | H7: 7 | I7: 7919042.004 | J7: 8958020.004 | K7: 9662120.004 | L7: 1 | O7: Abogado espe. En contratación pública | P7: Diseñador Estructural | Q7: Especialista Arq. Paisajista | R7: Profesional SISOMA | S7: Esp. Presupuestos y Porgramación | U7: Ing. Calidad | W7: Arquitecto Auxiliar | Y7: Pago De Salarios, Prestaciones
B8: PROFESIONAL CATEGORÍA 3 (E.G.6;E.E.4) | C8: 4 | D8: PERSONAL PROFESIONAL | E8: PROFESIONAL CATEGORÍA 3 (E.G.6;E.E.4) | F8: 106852 | G8: 8 | H8: 5 | I8: 7615464.67 | J8: 8614613.67 | K8: 9291722.67 | L8: 1 | O8: Biólogo | P8: Ingeniero Residente | Q8: Arq. o Ing. Bioclimático | R8: Especialista Estructural | S8: Profesional Calidad | U8: Ing. Transito | Y8: Estabilidad De La Obra
B9: PROFESIONAL ESPECIALISTA CONSTRUCCIÓN VELÓDROMOS CATEGORÍA 3A (E.G.8;E.E.5) | C9: 4a | D9: PERSONAL PROFESIONAL | E9: PROFESIONAL ESPECIALISTA CONSTRUCCIÓN VELÓDROMOS CATEGORÍA 3A (E.G.8;E.E.5) | F9: Por crear | G9: 8 | H9: 5 | J9: 12000000 | K9: 12943200
B10: PROFESIONAL ESPECIALISTA/COORDINADOR BIM CATEGORÍA 3B (E.G.8;E.E.5) | C10: 4b | D10: PERSONAL PROFESIONAL | E10: PROFESIONAL ESPECIALISTA/COORDINADOR BIM CATEGORÍA 3B (E.G.8;E.E.5) | F10: Por crear | G10: 8 | H10: 5 | J10: 10200000 | K10: 11001720
B11: PROFESIONAL ESPECIALISTA HIDROGEÓLOGO CATEGORÍA 3C (E.G.8;E.E.5) | C11: 5c | D11: PERSONAL PROFESIONAL | E11: PROFESIONAL ESPECIALISTA HIDROGEÓLOGO CATEGORÍA 3C (E.G.8;E.E.5) | F11: Por crear | G11: 8 | H11: 5 | J11: 9826727 | K11: 10599108
B12: PROFESIONAL CATEGORÍA 4 (E.G.4;E.E.1) | C12: 5 | D12: PERSONAL PROFESIONAL | E12: =IF(B12=$N$4,"ESPE1",IF(B12=$O$4,"ESPE2",IF(B12=$P$4,"PROF3",IF(B12=$Q$4,"PROF4",IF(B12=$R$4,"PROF5",IF(B12=$S$4,"PROF6",IF(B12=$T$4,"PROF6A",IF(B12=$U$4,"PROF7",IF(B12=$V$4,"PROF8",IF(B12=$W$4,"PROFAUX",B12)))))))))) -> PROFESIONAL CATEGORÍA 4 (E.G.4;E.E.1) | F12: 100144 | G12: 4 | H12: 1 | I12: 6405660.122 | J12: 7246083.122 | K12: 7815625.122 | L12: 1 | O12: Arquitecto Asesor - Maestria | P12: Especialista Hidráulico | Q12: Director | R12: Abogado Contratación | S12: Profesional Seguridad | U12: Ing. Fiorestal | Y12: Calidad Del Bien O Servicio
B13: PROFESIONAL CATEGORÍA 5 (E.G.3;E.E.1) | C13: 6 | D13: PERSONAL PROFESIONAL | E13: PROFESIONAL CATEGORÍA 5 (E.G.3;E.E.1) | F13: 100145 | G13: 3 | H13: 1 | I13: 5056859.598 | J13: 5720319.598 | K13: 6169936.598 | L13: 1 | O13: Arquitecto Diseñador Senior - Maestria | P13: Ing. Ambiental | Q13: Especialista Eléctrico | R13: Especialista Geotecnia | S13: Residente | U13: Ing. Programación | Y13: Correcto Funcionamiento
B14: PROFESIONAL CATEGORÍA 6 (E.G.3;E.E.1) | C14: 9 | D14: PERSONAL PROFESIONAL | E14: PROF6 | F14: 13042 | G14: 2 | H14: 1 | I14: 4963432.334 | J14: 5614634.334 | K14: 6055944.334 | L14: 1 | O14: Arquitecto Diseñador Junior - Especialización | P14: Arquitecto Urbanista | Q14: Especialista Estructural | R14: Ing. En Informática o Telecomunic. O Electrico o Electrónico o Experto en seguridad | S14: SISO | U14: Ing. Ambiental | Y14: Provision Repuestos Y Accesorios
B15: PROFESIONAL CATEGORÍA 6A (E.G.3;E.E.1) | C15: 7 | D15: PERSONAL PROFESIONAL | E15: PROF6A | F15: 100148 | G15: 3 | H15: 1 | I15: 5159596.001 | J15: 5836535.001 | K15: 6295287.001 | L15: 1 | O15: Arquitecto Urbanista | P15: Arquitecto Paisajista | Q15: Especialista Hidráulico | R15: Esp. Eléctrico | S15: Ing. Geotecnista | U15: Arqueólogo | Y15: Responsabilidad Civil Extracontractual
B16: CONTADOR (E.G.3;E.E.1) | C16: 8 | D16: PERSONAL PROFESIONAL | E16: CONTADOR (E.G.3;E.E.1) | F16: Por crear | G16: 3 | H16: 1 | I16: 4922862.008 | J16: 5568741.008 | K16: 6006444.008 | L16: 1 | O16: Especialista Geotecnista | P16: Esp. Eléctrico | Q16: Trabajador Social | R16: Esp. Hidráulico | S16: Especialista Eléctrico | U16: SISO | Y16: Disposiciones Legales
B17: TRABAJADOR SOCIAL (E.G.2) | C17: 10 | D17: PERSONAL PROFESIONAL | E17: TRABAJADOR SOCIAL (E.G.2) | F17: Por crear | G17: 2 | H17: - | I17: 4661023.749 | J17: 5272549.749 | K17: 5686971.749 | L17: 1 | O17: Diseñador Estructural | P17: Esp. Bioclimático | Q17: Ing. Geotecnista | R17: Ing. Mecánico | S17: Arquitecto | U17: Trabajador Social
B18: PROFESIONAL CATEGORÍA 7 (E.G.2) | C18: 11 | D18: PERSONAL PROFESIONAL | E18: PROF7 | F18: 100149 | G18: 2 | H18: - | I18: 4008251.576 | J18: 4534134.576 | K18: 4890517.576 | L18: 1 | O18: Especialista PMI | P18: Esp. Electrónico (sonido, video) | Q18: Ingeniero Residente de Interventoría | R18: Esp. Presupuestos y Porgramación | S18: Ing. Forestal | U18: Ing. Hidráulico
B19: PROFESIONAL CATEGORÍA 8 (E.G.0) | C19: 12 | D19: PERSONAL PROFESIONAL | E19: PROFESIONAL CATEGORÍA 8 (E.G.0) | F19: 100150 | G19: 0 | H19: - | I19: 3648963.516 | J19: 4127707.516 | K19: 4452145.516 | L19: 1 | P19: Esp. Seguridad y control CCTV | Q19: Ing. Residente Especializado en Estructuras | R19: Trabajador Social | S19: Diseñador Gráfico. (Señalitica y señalizacion) | U19: Presupuesto y cantificacion de obra
B20: PROFESIONAL AUXILIAR | C20: 13 | D20: PERSONAL PROFESIONAL | E20: PROFAUX | F20: 100023 | G20: 0 | H20: - | I20: 2168805.865 | J20: 2453352.865 | K20: 2646186.865 | L20: 1 | P20: Ingeniero Mecánico | Q20: Arquitecto Residente de Interventoría | R20: Coordinador | S20: Ing. Tránsito | U20: Arq. o Ing. Auxiliar
B21: Topógrafo 1 | C21: 14 | D21: PERSONAL TÉCNICO O TECNÓLOGO | E21: Topógrafo 1 | F21: 598 | G21: 0 | H21: 3 | I21: 2798614.965 | J21: 3165792.965 | K21: 3414623.965 | L21: 2 | P21: Asesor | Q21: Esp. Presupuestos y Porgramación | R21: Arq. Diseñador | S21: Coordinador de Estudios y Diseños
B22: Topógrafo Auxiliar | C22: 15 | D22: PERSONAL TÉCNICO O TECNÓLOGO | E22: Topógrafo Auxiliar | F22: Por crear | G22: 0 | H22: 3 | I22: 2228043.262 | J22: 2520362.262 | K22: 2718462.262 | L22: 2 | P22: Prof. En Calidad de Obra Ing o Arq | Q22: Esp. Seguridad y control CCTV | R22: Arq. Paisajista | S22: Biologo
B23: Tecnólogo En Ingeniería | C23: 16 | D23: PERSONAL TÉCNICO O TECNÓLOGO | E23: Tecnólogo En Ingeniería | F23: Por crear | G23: 0 | H23: 3 | I23: 2474045.545 | J23: 2798640.545 | K23: 3018613.545 | L23: 2 | P23: Coordinador Estudios Diseños | Q23: SISO Ingeniero o arq. | R23: Esp. Geotecnista | S23: Contador Publico
B24: Maestro O Inspector 1 | C24: 17 | D24: PERSONAL OPERARIO Y DE APOYO A LA GESTIÓN | E24: Maestro O Inspector 1 | F24: Por crear | G24: 3 | H24: 8 | I24: 2078360.612 | J24: 2351041.612 | K24: 2535833.612 | L24: 3 | P24: Diseñador Grafico (señalética y señalización) | Q24: Ing. Mecánico | R24: Contador | S24: Esp. Ambiental
B25: Maestro O Inspector Categoría 2 | C25: 17a | D25: PERSONAL OPERARIO Y DE APOYO A LA GESTIÓN | E25: Maestro O Inspector Categoría 2 | F25: Por crear | G25: 10 | J25: 5000000 | K25: 5393000
B26: Laboratorista Inspector | C26: 18 | D26: PERSONAL OPERARIO Y DE APOYO A LA GESTIÓN | E26: Laboratorista Inspector | F26: 3996 | G26: 3 | H26: 8 | I26: 2559381 | J26: 2778162.424 | K26: 2996525.991 | L26: 3 | P26: Presupuesto y Programación | Q26: Ing. En Informatica o telecomunicaciones o Eléctrico | R26: Ing. Forestal
B27: Operador De Equipo | C27: 19 | D27: PERSONAL OPERARIO Y DE APOYO A LA GESTIÓN | E27: Operador De Equipo | F27: Por crear | G27: 0 | H27: 3 | I27: 2142557 | J27: 2325707.893 | K27: 2508508.534 | L27: 3 | P27: Arq. Escenografo | Q27: Profesional en Pedagogía Infantil | R27: Esp. Ambiental
B28: Operador Auxiliar De Equipo | C28: 20 | D28: PERSONAL OPERARIO Y DE APOYO A LA GESTIÓN | E28: Operador Auxiliar De Equipo | F28: Por crear | G28: 0 | H28: 3 | I28: 1583493 | J28: 1718853.685 | K28: 1853955.584 | L28: 3 | Q28: Coordinador Estudios | R28: Abogado
B29: Oficial O Inspector 2 | C29: 21 | D29: PERSONAL OPERARIO Y DE APOYO A LA GESTIÓN | E29: Oficial O Inspector 2 | F29: 1558 | G29: 0 | H29: 3 | I29: 1843949 | J29: 2001574.19 | K29: 2158897.921 | L29: 3 | Q29: Diseñador Grafico (señalética y señalización) | R29: Ing. Residente
B30: Laboratorista Auxiliar | C30: 22 | D30: PERSONAL OPERARIO Y DE APOYO A LA GESTIÓN | E30: Laboratorista Auxiliar | F30: 3996 | G30: 0 | H30: 3 | I30: 1828322 | J30: 1984611.032 | K30: 2140601.46 | L30: 3 | Q30: Contador Publico | R30: Ing. Residente Especializado en Estrcuturas
B31: Cadenero 1 | C31: 23 | D31: PERSONAL OPERARIO Y DE APOYO A LA GESTIÓN | E31: Cadenero 1 | F31: 642 | G31: 8 | H31: N.A. | I31: 1781116 | J31: 1933369.38 | K31: 2085332.214 | L31: 3 | Q31: Abogado. Con postgrado en contratación estatal o derecho administrativo. Experiencia especifica en auditoría de contratos estatales | R31: Arq. Residente
B32: Conductor O Motorista | C32: 24 | D32: PERSONAL OPERARIO Y DE APOYO A LA GESTIÓN | E32: Conductor O Motorista | F32: Por crear | G32: 0 | H32: 3 | I32: 1190002 | J32: 1291725.064 | K32: 1393254.654 | L32: 3 | R32: Ing. O Arq. Experto en Piscinas
B33: Secretaria 1 | C33: 25 | D33: PERSONAL OPERARIO Y DE APOYO A LA GESTIÓN | E33: Secretaria 1 | F33: Por crear | G33: 0 | H33: 3 | I33: 1497460 | J33: 1625467.052 | K33: 1753228.762 | L33: 3 | R33: Diseñador Grafico (señalética y señalización)
B34: Secretaria 2 | C34: 26 | D34: PERSONAL OPERARIO Y DE APOYO A LA GESTIÓN | E34: Secretaria 2 | F34: Por crear | G34: 0 | H34: 3 | I34: 1196518 | J34: 1298799.436 | K34: 1400885.072 | L34: 3 | R34: Ing. o Arq. Auxiliares (Arqueologo)
B35: Cadenero 2 | C35: 27 | D35: PERSONAL OPERARIO Y DE APOYO A LA GESTIÓN | E35: Cadenero 2 | F35: 714 | G35: 0 | H35: 3 | I35: 1505203 | J35: 1633869.981 | K35: 1762292.161 | L35: 3 | R35: Ing. Transito
B36: Celador | C36: 28 | D36: PERSONAL OPERARIO Y DE APOYO A LA GESTIÓN | E36: Celador | F36: 1551 | G36: 0 | H36: 3 | I36: 1000000 | J36: 1160000 | K36: 1251176 | L36: 3
B37: Digitador 1 | C37: 29 | D37: PERSONAL OPERARIO Y DE APOYO A LA GESTIÓN | E37: Digitador 1 | F37: Por crear | I37: 2362594 | J37: 2564553.967 | K37: 2766127.908 | L37: 3
B38: Digitador 2 | C38: 30 | D38: PERSONAL OPERARIO Y DE APOYO A LA GESTIÓN | E38: Digitador 2 | F38: Por crear | I38: 1909819 | J38: 2073073.928 | K38: 2236017.539 | L38: 3
B39: Administrador | C39: 31 | D39: PERSONAL OPERARIO Y DE APOYO A LA GESTIÓN | E39: Administrador | F39: Por crear | G39: 3 | H39: 8 | I39: 2559381 | J39: 2778162.424 | K39: 2996525.991 | L39: 3
B40: Almacenista | C40: 32 | D40: PERSONAL OPERARIO Y DE APOYO A LA GESTIÓN | E40: Almacenista | F40: 3766 | I40: 1232785 | J40: 1338166.911 | K40: 1443346.83 | L40: 3
B41: Obrero | C41: 33 | D41: PERSONAL OPERARIO Y DE APOYO A LA GESTIÓN | E41: Obrero | F41: 1550 | I41: 1000000 | J41: 1160000 | K41: 1251176 | L41: 3
E42: Nota: | I42: Valores 2023 y 2024 validados por Diego Trujillo (14/03/2023)
B43: Nota: | C43: En espera de instrucción (por parte de Yraidis Sanchez) para unificación del valores con los procesos CAR GIBRALTAR; VELODROMO y PARQUE LINEAL (8/03/2023)
B44: Revisó
B46: Diego Trujillo
B47: Contratista STC
